{"text_format":"1","workbook":"xlsx","n_sheets":2,"sheets":["Нак1","Модель"],"not_rendered":{"charts":0,"images":0,"macros":1,"external_links":1,"defined_names":22,"comments":0,"pivot_tables":0},"unopened":[],"bounds":{"document_bytes":16777216,"sheet_cells":100000,"rows_first":2000,"rows_last":500,"rows_between":2000,"halvings":0,"cell_chars":16384,"cell_head_chars":4096},"cells_cut":0,"cells_raw":0,"read":"whole","date_system":"1900"}

{"sheet":"Нак1","index":0,"n_rows":130,"n_cols":5,"rows_kept":130,"cut":false,"hidden":false,"merged":[[1,0,1,1],[0,0,0,1]]}
["Поставщик: "]
["Покупатель:",null,null,"Дата:",{"$f":"TODAY()","v":"2019-09-23"}]
["№ п/п","                                                   aaaaТовар","Кол-во, шт.","Цена, руб.","Сумма, руб."]
[{"$f":"IF(OR(ТабЧастьНакладной[[#This Row],[                                                   aaaaТовар]]=\"\",RIGHTB(ТабЧастьНакладной[[#This Row],[                                                   aaaaТовар]])=\".\"),\"\",IFERROR(VLOOKUP(9E+307,A$1:INDEX(A:A,ROW()-1),1),)+1)","v":1},"Антрацит трико, светло-серый, размер 42, ШК 2000003665655",1,{"$f":"VLOOKUP(ТабЧастьНакладной[[                                                   aaaaТовар]],#REF!,2,0)","v":{"$error":"#REF!"}},{"$f":"C4*D4","v":{"$error":"#REF!"}}]
[{"$f":"IF(OR(ТабЧастьНакладной[[#This Row],[                                                   aaaaТовар]]=\"\",RIGHTB(ТабЧастьНакладной[[#This Row],[                                                   aaaaТовар]])=\".\"),\"\",IFERROR(VLOOKUP(9E+307,A$1:INDEX(A:A,ROW()-1),1),)+1)","v":2},"Антрацит трико, светло-серый, размер 44, ШК 2000003665662",2,{"$f":"VLOOKUP(ТабЧастьНакладной[[                                                   aaaaТовар]],#REF!,2,0)","v":{"$error":"#REF!"}},{"$f":"C5*D5","v":{"$error":"#REF!"}}]
[{"$f":"IF(OR(ТабЧастьНакладной[[#This Row],[                                                   aaaaТовар]]=\"\",RIGHTB(ТабЧастьНакладной[[#This Row],[                                                   aaaaТовар]])=\".\"),\"\",IFERROR(VLOOKUP(9E+307,A$1:INDEX(A:A,ROW()-1),1),)+1)","v":3},"Антрацит трико, светло-серый, размер 46, ШК 2000003665679",3,{"$f":"VLOOKUP(ТабЧастьНакладной[[                                                   aaaaТовар]],#REF!,2,0)","v":{"$error":"#REF!"}},{"$f":"C6*D6","v":{"$error":"#REF!"}}]
[{"$f":"IF(OR(ТабЧастьНакладной[[#This Row],[                                                   aaaaТовар]]=\"\",RIGHTB(ТабЧастьНакладной[[#This Row],[                                                   aaaaТовар]])=\".\"),\"\",IFERROR(VLOOKUP(9E+307,A$1:INDEX(A:A,ROW()-1),1),)+1)","v":4},"Антрацит трико, светло-серый, размер 48, ШК 2000003665686",4,{"$f":"VLOOKUP(ТабЧастьНакладной[[                                                   aaaaТовар]],#REF!,2,0)","v":{"$error":"#REF!"}},{"$f":"C7*D7","v":{"$error":"#REF!"}}]
[{"$f":"IF(OR(ТабЧастьНакладной[[#This Row],[                                                   aaaaТовар]]=\"\",RIGHTB(ТабЧастьНакладной[[#This Row],[                                                   aaaaТовар]])=\".\"),\"\",IFERROR(VLOOKUP(9E+307,A$1:INDEX(A:A,ROW()-1),1),)+1)","v":5},"Антрацит трико, светло-серый, размер 50, ШК 2000003665693",5,{"$f":"VLOOKUP(ТабЧастьНакладной[[                                                   aaaaТовар]],#REF!,2,0)","v":{"$error":"#REF!"}},{"$f":"C8*D8","v":{"$error":"#REF!"}}]
[{"$f":"IF(OR(ТабЧастьНакладной[[#This Row],[                                                   aaaaТовар]]=\"\",RIGHTB(ТабЧастьНакладной[[#This Row],[                                                   aaaaТовар]])=\".\"),\"\",IFERROR(VLOOKUP(9E+307,A$1:INDEX(A:A,ROW()-1),1),)+1)","v":6},"Антрацит трико, светло-серый, размер 52, ШК 2000003665709",6,{"$f":"VLOOKUP(ТабЧастьНакладной[[                                                   aaaaТовар]],#REF!,2,0)","v":{"$error":"#REF!"}},{"$f":"C9*D9","v":{"$error":"#REF!"}}]
[{"$f":"IF(OR(ТабЧастьНакладной[[#This Row],[                                                   aaaaТовар]]=\"\",RIGHTB(ТабЧастьНакладной[[#This Row],[                                                   aaaaТовар]])=\".\"),\"\",IFERROR(VLOOKUP(9E+307,A$1:INDEX(A:A,ROW()-1),1),)+1)","v":""},"Антрацит трико, светло-серый.",21,{"$f":"VLOOKUP(ТабЧастьНакладной[[                                                   aaaaТовар]],#REF!,2,0)","v":{"$error":"#REF!"}},{"$f":"C10*D10","v":{"$error":"#REF!"}}]
[{"$f":"IF(OR(ТабЧастьНакладной[[#This Row],[                                                   aaaaТовар]]=\"\",RIGHTB(ТабЧастьНакладной[[#This Row],[                                                   aaaaТовар]])=\".\"),\"\",IFERROR(VLOOKUP(9E+307,A$1:INDEX(A:A,ROW()-1),1),)+1)","v":7},"Брейк трико, черный, размер 30, ШК 2000003750221",1,{"$f":"VLOOKUP(ТабЧастьНакладной[[                                                   aaaaТовар]],#REF!,2,0)","v":{"$error":"#REF!"}},{"$f":"C11*D11","v":{"$error":"#REF!"}}]
[{"$f":"IF(OR(ТабЧастьНакладной[[#This Row],[                                                   aaaaТовар]]=\"\",RIGHTB(ТабЧастьНакладной[[#This Row],[                                                   aaaaТовар]])=\".\"),\"\",IFERROR(VLOOKUP(9E+307,A$1:INDEX(A:A,ROW()-1),1),)+1)","v":8},"Брейк трико, черный, размер 32, ШК 2000003750238",2,{"$f":"VLOOKUP(ТабЧастьНакладной[[                                                   aaaaТовар]],#REF!,2,0)","v":{"$error":"#REF!"}},{"$f":"C12*D12","v":{"$error":"#REF!"}}]
[{"$f":"IF(OR(ТабЧастьНакладной[[#This Row],[                                                   aaaaТовар]]=\"\",RIGHTB(ТабЧастьНакладной[[#This Row],[                                                   aaaaТовар]])=\".\"),\"\",IFERROR(VLOOKUP(9E+307,A$1:INDEX(A:A,ROW()-1),1),)+1)","v":9},"Брейк трико, черный, размер 34, ШК 2000003750245",3,{"$f":"VLOOKUP(ТабЧастьНакладной[[                                                   aaaaТовар]],#REF!,2,0)","v":{"$error":"#REF!"}},{"$f":"C13*D13","v":{"$error":"#REF!"}}]
[{"$f":"IF(OR(ТабЧастьНакладной[[#This Row],[                                                   aaaaТовар]]=\"\",RIGHTB(ТабЧастьНакладной[[#This Row],[                                                   aaaaТовар]])=\".\"),\"\",IFERROR(VLOOKUP(9E+307,A$1:INDEX(A:A,ROW()-1),1),)+1)","v":10},"Брейк трико, черный, размер 36, ШК 2000003750252",4,{"$f":"VLOOKUP(ТабЧастьНакладной[[                                                   aaaaТовар]],#REF!,2,0)","v":{"$error":"#REF!"}},{"$f":"C14*D14","v":{"$error":"#REF!"}}]
[{"$f":"IF(OR(ТабЧастьНакладной[[#This Row],[                                                   aaaaТовар]]=\"\",RIGHTB(ТабЧастьНакладной[[#This Row],[                                                   aaaaТовар]])=\".\"),\"\",IFERROR(VLOOKUP(9E+307,A$1:INDEX(A:A,ROW()-1),1),)+1)","v":11},"Брейк трико, черный, размер 36, Штрих-код 2000003750252",5,{"$f":"VLOOKUP(ТабЧастьНакладной[[                                                   aaaaТовар]],#REF!,2,0)","v":{"$error":"#REF!"}},{"$f":"C15*D15","v":{"$error":"#REF!"}}]
[{"$f":"IF(OR(ТабЧастьНакладной[[#This Row],[                                                   aaaaТовар]]=\"\",RIGHTB(ТабЧастьНакладной[[#This Row],[                                                   aaaaТовар]])=\".\"),\"\",IFERROR(VLOOKUP(9E+307,A$1:INDEX(A:A,ROW()-1),1),)+1)","v":12},"Брейк трико, черный, размер 38, ШК 2000003750269",6,{"$f":"VLOOKUP(ТабЧастьНакладной[[                                                   aaaaТовар]],#REF!,2,0)","v":{"$error":"#REF!"}},{"$f":"C16*D16","v":{"$error":"#REF!"}}]
[{"$f":"IF(OR(ТабЧастьНакладной[[#This Row],[                                                   aaaaТовар]]=\"\",RIGHTB(ТабЧастьНакладной[[#This Row],[                                                   aaaaТовар]])=\".\"),\"\",IFERROR(VLOOKUP(9E+307,A$1:INDEX(A:A,ROW()-1),1),)+1)","v":13},"Брейк трико, черный, размер 40, ШК 2000003750276",7,{"$f":"VLOOKUP(ТабЧастьНакладной[[                                                   aaaaТовар]],#REF!,2,0)","v":{"$error":"#REF!"}},{"$f":"C17*D17","v":{"$error":"#REF!"}}]
[{"$f":"IF(OR(ТабЧастьНакладной[[#This Row],[                                                   aaaaТовар]]=\"\",RIGHTB(ТабЧастьНакладной[[#This Row],[                                                   aaaaТовар]])=\".\"),\"\",IFERROR(VLOOKUP(9E+307,A$1:INDEX(A:A,ROW()-1),1),)+1)","v":14},"Брейк трико, черный, размер 42, ШК 2000003750283",8,{"$f":"VLOOKUP(ТабЧастьНакладной[[                                                   aaaaТовар]],#REF!,2,0)","v":{"$error":"#REF!"}},{"$f":"C18*D18","v":{"$error":"#REF!"}}]
[{"$f":"IF(OR(ТабЧастьНакладной[[#This Row],[                                                   aaaaТовар]]=\"\",RIGHTB(ТабЧастьНакладной[[#This Row],[                                                   aaaaТовар]])=\".\"),\"\",IFERROR(VLOOKUP(9E+307,A$1:INDEX(A:A,ROW()-1),1),)+1)","v":""},"Брейк трико, черный.",36,{"$f":"VLOOKUP(ТабЧастьНакладной[[                                                   aaaaТовар]],#REF!,2,0)","v":{"$error":"#REF!"}},{"$f":"C19*D19","v":{"$error":"#REF!"}}]
[{"$f":"IF(OR(ТабЧастьНакладной[[#This Row],[                                                   aaaaТовар]]=\"\",RIGHTB(ТабЧастьНакладной[[#This Row],[                                                   aaaaТовар]])=\".\"),\"\",IFERROR(VLOOKUP(9E+307,A$1:INDEX(A:A,ROW()-1),1),)+1)","v":15},"Вуаль футболка, молочный, размер 44, ШК 4650105315002",1,{"$f":"VLOOKUP(ТабЧастьНакладной[[                                                   aaaaТовар]],#REF!,2,0)","v":{"$error":"#REF!"}},{"$f":"C20*D20","v":{"$error":"#REF!"}}]
[{"$f":"IF(OR(ТабЧастьНакладной[[#This Row],[                                                   aaaaТовар]]=\"\",RIGHTB(ТабЧастьНакладной[[#This Row],[                                                   aaaaТовар]])=\".\"),\"\",IFERROR(VLOOKUP(9E+307,A$1:INDEX(A:A,ROW()-1),1),)+1)","v":16},"Вуаль футболка, молочный, размер 46, ШК 4650105315019",2,{"$f":"VLOOKUP(ТабЧастьНакладной[[                                                   aaaaТовар]],#REF!,2,0)","v":{"$error":"#REF!"}},{"$f":"C21*D21","v":{"$error":"#REF!"}}]
[{"$f":"IF(OR(ТабЧастьНакладной[[#This Row],[                                                   aaaaТовар]]=\"\",RIGHTB(ТабЧастьНакладной[[#This Row],[                                                   aaaaТовар]])=\".\"),\"\",IFERROR(VLOOKUP(9E+307,A$1:INDEX(A:A,ROW()-1),1),)+1)","v":17},"Вуаль футболка, молочный, размер 48, ШК 4650105315026",3,{"$f":"VLOOKUP(ТабЧастьНакладной[[                                                   aaaaТовар]],#REF!,2,0)","v":{"$error":"#REF!"}},{"$f":"C22*D22","v":{"$error":"#REF!"}}]
[{"$f":"IF(OR(ТабЧастьНакладной[[#This Row],[                                                   aaaaТовар]]=\"\",RIGHTB(ТабЧастьНакладной[[#This Row],[                                                   aaaaТовар]])=\".\"),\"\",IFERROR(VLOOKUP(9E+307,A$1:INDEX(A:A,ROW()-1),1),)+1)","v":18},"Вуаль футболка, молочный, размер 50, ШК 4650105315033",4,{"$f":"VLOOKUP(ТабЧастьНакладной[[                                                   aaaaТовар]],#REF!,2,0)","v":{"$error":"#REF!"}},{"$f":"C23*D23","v":{"$error":"#REF!"}}]
[{"$f":"IF(OR(ТабЧастьНакладной[[#This Row],[                                                   aaaaТовар]]=\"\",RIGHTB(ТабЧастьНакладной[[#This Row],[                                                   aaaaТовар]])=\".\"),\"\",IFERROR(VLOOKUP(9E+307,A$1:INDEX(A:A,ROW()-1),1),)+1)","v":19},"Вуаль футболка, молочный, размер 52, ШК 4650105315040",5,{"$f":"VLOOKUP(ТабЧастьНакладной[[                                                   aaaaТовар]],#REF!,2,0)","v":{"$error":"#REF!"}},{"$f":"C24*D24","v":{"$error":"#REF!"}}]
[{"$f":"IF(OR(ТабЧастьНакладной[[#This Row],[                                                   aaaaТовар]]=\"\",RIGHTB(ТабЧастьНакладной[[#This Row],[                                                   aaaaТовар]])=\".\"),\"\",IFERROR(VLOOKUP(9E+307,A$1:INDEX(A:A,ROW()-1),1),)+1)","v":20},"Вуаль футболка, молочный, размер 54, ШК 4650105315057",6,{"$f":"VLOOKUP(ТабЧастьНакладной[[                                                   aaaaТовар]],#REF!,2,0)","v":{"$error":"#REF!"}},{"$f":"C25*D25","v":{"$error":"#REF!"}}]
[{"$f":"IF(OR(ТабЧастьНакладной[[#This Row],[                                                   aaaaТовар]]=\"\",RIGHTB(ТабЧастьНакладной[[#This Row],[                                                   aaaaТовар]])=\".\"),\"\",IFERROR(VLOOKUP(9E+307,A$1:INDEX(A:A,ROW()-1),1),)+1)","v":21},"Вуаль футболка, молочный, размер 56, ШК 4650105315064",7,{"$f":"VLOOKUP(ТабЧастьНакладной[[                                                   aaaaТовар]],#REF!,2,0)","v":{"$error":"#REF!"}},{"$f":"C26*D26","v":{"$error":"#REF!"}}]
[{"$f":"IF(OR(ТабЧастьНакладной[[#This Row],[                                                   aaaaТовар]]=\"\",RIGHTB(ТабЧастьНакладной[[#This Row],[                                                   aaaaТовар]])=\".\"),\"\",IFERROR(VLOOKUP(9E+307,A$1:INDEX(A:A,ROW()-1),1),)+1)","v":22},"Вуаль футболка, молочный, размер 58, ШК 4650105315071",8,{"$f":"VLOOKUP(ТабЧастьНакладной[[                                                   aaaaТовар]],#REF!,2,0)","v":{"$error":"#REF!"}},{"$f":"C27*D27","v":{"$error":"#REF!"}}]
[{"$f":"IF(OR(ТабЧастьНакладной[[#This Row],[                                                   aaaaТовар]]=\"\",RIGHTB(ТабЧастьНакладной[[#This Row],[                                                   aaaaТовар]])=\".\"),\"\",IFERROR(VLOOKUP(9E+307,A$1:INDEX(A:A,ROW()-1),1),)+1)","v":""},"Вуаль футболка, молочный.",36,{"$f":"VLOOKUP(ТабЧастьНакладной[[                                                   aaaaТовар]],#REF!,2,0)","v":{"$error":"#REF!"}},{"$f":"C28*D28","v":{"$error":"#REF!"}}]
[{"$f":"IF(OR(ТабЧастьНакладной[[#This Row],[                                                   aaaaТовар]]=\"\",RIGHTB(ТабЧастьНакладной[[#This Row],[                                                   aaaaТовар]])=\".\"),\"\",IFERROR(VLOOKUP(9E+307,A$1:INDEX(A:A,ROW()-1),1),)+1)","v":23},"Вуаль футболка, черный, размер 44, ШК 4650105315088",1,{"$f":"VLOOKUP(ТабЧастьНакладной[[                                                   aaaaТовар]],#REF!,2,0)","v":{"$error":"#REF!"}},{"$f":"C29*D29","v":{"$error":"#REF!"}}]
[{"$f":"IF(OR(ТабЧастьНакладной[[#This Row],[                                                   aaaaТовар]]=\"\",RIGHTB(ТабЧастьНакладной[[#This Row],[                                                   aaaaТовар]])=\".\"),\"\",IFERROR(VLOOKUP(9E+307,A$1:INDEX(A:A,ROW()-1),1),)+1)","v":24},"Вуаль футболка, черный, размер 46, ШК 4650105315095",2,{"$f":"VLOOKUP(ТабЧастьНакладной[[                                                   aaaaТовар]],#REF!,2,0)","v":{"$error":"#REF!"}},{"$f":"C30*D30","v":{"$error":"#REF!"}}]
[{"$f":"IF(OR(ТабЧастьНакладной[[#This Row],[                                                   aaaaТовар]]=\"\",RIGHTB(ТабЧастьНакладной[[#This Row],[                                                   aaaaТовар]])=\".\"),\"\",IFERROR(VLOOKUP(9E+307,A$1:INDEX(A:A,ROW()-1),1),)+1)","v":25},"Вуаль футболка, черный, размер 48, ШК 4650105315101",3,{"$f":"VLOOKUP(ТабЧастьНакладной[[                                                   aaaaТовар]],#REF!,2,0)","v":{"$error":"#REF!"}},{"$f":"C31*D31","v":{"$error":"#REF!"}}]
[{"$f":"IF(OR(ТабЧастьНакладной[[#This Row],[                                                   aaaaТовар]]=\"\",RIGHTB(ТабЧастьНакладной[[#This Row],[                                                   aaaaТовар]])=\".\"),\"\",IFERROR(VLOOKUP(9E+307,A$1:INDEX(A:A,ROW()-1),1),)+1)","v":26},"Вуаль футболка, черный, размер 50, ШК 4650105315118",4,{"$f":"VLOOKUP(ТабЧастьНакладной[[                                                   aaaaТовар]],#REF!,2,0)","v":{"$error":"#REF!"}},{"$f":"C32*D32","v":{"$error":"#REF!"}}]
[{"$f":"IF(OR(ТабЧастьНакладной[[#This Row],[                                                   aaaaТовар]]=\"\",RIGHTB(ТабЧастьНакладной[[#This Row],[                                                   aaaaТовар]])=\".\"),\"\",IFERROR(VLOOKUP(9E+307,A$1:INDEX(A:A,ROW()-1),1),)+1)","v":27},"Вуаль футболка, черный, размер 52, ШК 4650105315125",5,{"$f":"VLOOKUP(ТабЧастьНакладной[[                                                   aaaaТовар]],#REF!,2,0)","v":{"$error":"#REF!"}},{"$f":"C33*D33","v":{"$error":"#REF!"}}]
[{"$f":"IF(OR(ТабЧастьНакладной[[#This Row],[                                                   aaaaТовар]]=\"\",RIGHTB(ТабЧастьНакладной[[#This Row],[                                                   aaaaТовар]])=\".\"),\"\",IFERROR(VLOOKUP(9E+307,A$1:INDEX(A:A,ROW()-1),1),)+1)","v":28},"Вуаль футболка, черный, размер 54, ШК 4650105315132",6,{"$f":"VLOOKUP(ТабЧастьНакладной[[                                                   aaaaТовар]],#REF!,2,0)","v":{"$error":"#REF!"}},{"$f":"C34*D34","v":{"$error":"#REF!"}}]
[{"$f":"IF(OR(ТабЧастьНакладной[[#This Row],[                                                   aaaaТовар]]=\"\",RIGHTB(ТабЧастьНакладной[[#This Row],[                                                   aaaaТовар]])=\".\"),\"\",IFERROR(VLOOKUP(9E+307,A$1:INDEX(A:A,ROW()-1),1),)+1)","v":29},"Вуаль футболка, черный, размер 56, ШК 4650105315149",7,{"$f":"VLOOKUP(ТабЧастьНакладной[[                                                   aaaaТовар]],#REF!,2,0)","v":{"$error":"#REF!"}},{"$f":"C35*D35","v":{"$error":"#REF!"}}]
[{"$f":"IF(OR(ТабЧастьНакладной[[#This Row],[                                                   aaaaТовар]]=\"\",RIGHTB(ТабЧастьНакладной[[#This Row],[                                                   aaaaТовар]])=\".\"),\"\",IFERROR(VLOOKUP(9E+307,A$1:INDEX(A:A,ROW()-1),1),)+1)","v":30},"Вуаль футболка, черный, размер 58, ШК 4650105315156",8,{"$f":"VLOOKUP(ТабЧастьНакладной[[                                                   aaaaТовар]],#REF!,2,0)","v":{"$error":"#REF!"}},{"$f":"C36*D36","v":{"$error":"#REF!"}}]
[{"$f":"IF(OR(ТабЧастьНакладной[[#This Row],[                                                   aaaaТовар]]=\"\",RIGHTB(ТабЧастьНакладной[[#This Row],[                                                   aaaaТовар]])=\".\"),\"\",IFERROR(VLOOKUP(9E+307,A$1:INDEX(A:A,ROW()-1),1),)+1)","v":""},"Вуаль футболка, черный.",36,{"$f":"VLOOKUP(ТабЧастьНакладной[[                                                   aaaaТовар]],#REF!,2,0)","v":{"$error":"#REF!"}},{"$f":"C37*D37","v":{"$error":"#REF!"}}]
[{"$f":"IF(OR(ТабЧастьНакладной[[#This Row],[                                                   aaaaТовар]]=\"\",RIGHTB(ТабЧастьНакладной[[#This Row],[                                                   aaaaТовар]])=\".\"),\"\",IFERROR(VLOOKUP(9E+307,A$1:INDEX(A:A,ROW()-1),1),)+1)","v":31},"Вэст футболка, бордовый, размер 46, ШК 4650105293003",1,{"$f":"VLOOKUP(ТабЧастьНакладной[[                                                   aaaaТовар]],#REF!,2,0)","v":{"$error":"#REF!"}},{"$f":"C38*D38","v":{"$error":"#REF!"}}]
[{"$f":"IF(OR(ТабЧастьНакладной[[#This Row],[                                                   aaaaТовар]]=\"\",RIGHTB(ТабЧастьНакладной[[#This Row],[                                                   aaaaТовар]])=\".\"),\"\",IFERROR(VLOOKUP(9E+307,A$1:INDEX(A:A,ROW()-1),1),)+1)","v":32},"Вэст футболка, бордовый, размер 48, ШК 4650105293010",2,{"$f":"VLOOKUP(ТабЧастьНакладной[[                                                   aaaaТовар]],#REF!,2,0)","v":{"$error":"#REF!"}},{"$f":"C39*D39","v":{"$error":"#REF!"}}]
[{"$f":"IF(OR(ТабЧастьНакладной[[#This Row],[                                                   aaaaТовар]]=\"\",RIGHTB(ТабЧастьНакладной[[#This Row],[                                                   aaaaТовар]])=\".\"),\"\",IFERROR(VLOOKUP(9E+307,A$1:INDEX(A:A,ROW()-1),1),)+1)","v":33},"Вэст футболка, бордовый, размер 50, ШК 4650105293027",3,{"$f":"VLOOKUP(ТабЧастьНакладной[[                                                   aaaaТовар]],#REF!,2,0)","v":{"$error":"#REF!"}},{"$f":"C40*D40","v":{"$error":"#REF!"}}]
[{"$f":"IF(OR(ТабЧастьНакладной[[#This Row],[                                                   aaaaТовар]]=\"\",RIGHTB(ТабЧастьНакладной[[#This Row],[                                                   aaaaТовар]])=\".\"),\"\",IFERROR(VLOOKUP(9E+307,A$1:INDEX(A:A,ROW()-1),1),)+1)","v":34},"Вэст футболка, бордовый, размер 52, ШК 4650105293034",4,{"$f":"VLOOKUP(ТабЧастьНакладной[[                                                   aaaaТовар]],#REF!,2,0)","v":{"$error":"#REF!"}},{"$f":"C41*D41","v":{"$error":"#REF!"}}]
[{"$f":"IF(OR(ТабЧастьНакладной[[#This Row],[                                                   aaaaТовар]]=\"\",RIGHTB(ТабЧастьНакладной[[#This Row],[                                                   aaaaТовар]])=\".\"),\"\",IFERROR(VLOOKUP(9E+307,A$1:INDEX(A:A,ROW()-1),1),)+1)","v":35},"Вэст футболка, бордовый, размер 54, ШК 4650105293041",5,{"$f":"VLOOKUP(ТабЧастьНакладной[[                                                   aaaaТовар]],#REF!,2,0)","v":{"$error":"#REF!"}},{"$f":"C42*D42","v":{"$error":"#REF!"}}]
[{"$f":"IF(OR(ТабЧастьНакладной[[#This Row],[                                                   aaaaТовар]]=\"\",RIGHTB(ТабЧастьНакладной[[#This Row],[                                                   aaaaТовар]])=\".\"),\"\",IFERROR(VLOOKUP(9E+307,A$1:INDEX(A:A,ROW()-1),1),)+1)","v":36},"Вэст футболка, бордовый, размер 56, ШК 4650105293058",6,{"$f":"VLOOKUP(ТабЧастьНакладной[[                                                   aaaaТовар]],#REF!,2,0)","v":{"$error":"#REF!"}},{"$f":"C43*D43","v":{"$error":"#REF!"}}]
[{"$f":"IF(OR(ТабЧастьНакладной[[#This Row],[                                                   aaaaТовар]]=\"\",RIGHTB(ТабЧастьНакладной[[#This Row],[                                                   aaaaТовар]])=\".\"),\"\",IFERROR(VLOOKUP(9E+307,A$1:INDEX(A:A,ROW()-1),1),)+1)","v":37},"Вэст футболка, бордовый, размер 58, ШК 4650105293065",7,{"$f":"VLOOKUP(ТабЧастьНакладной[[                                                   aaaaТовар]],#REF!,2,0)","v":{"$error":"#REF!"}},{"$f":"C44*D44","v":{"$error":"#REF!"}}]
[{"$f":"IF(OR(ТабЧастьНакладной[[#This Row],[                                                   aaaaТовар]]=\"\",RIGHTB(ТабЧастьНакладной[[#This Row],[                                                   aaaaТовар]])=\".\"),\"\",IFERROR(VLOOKUP(9E+307,A$1:INDEX(A:A,ROW()-1),1),)+1)","v":38},"Вэст футболка, бордовый, размер 60, ШК 4650105293072",8,{"$f":"VLOOKUP(ТабЧастьНакладной[[                                                   aaaaТовар]],#REF!,2,0)","v":{"$error":"#REF!"}},{"$f":"C45*D45","v":{"$error":"#REF!"}}]
[{"$f":"IF(OR(ТабЧастьНакладной[[#This Row],[                                                   aaaaТовар]]=\"\",RIGHTB(ТабЧастьНакладной[[#This Row],[                                                   aaaaТовар]])=\".\"),\"\",IFERROR(VLOOKUP(9E+307,A$1:INDEX(A:A,ROW()-1),1),)+1)","v":39},"Вэст футболка, бордовый, размер 62, ШК 4650105293089",9,{"$f":"VLOOKUP(ТабЧастьНакладной[[                                                   aaaaТовар]],#REF!,2,0)","v":{"$error":"#REF!"}},{"$f":"C46*D46","v":{"$error":"#REF!"}}]
[{"$f":"IF(OR(ТабЧастьНакладной[[#This Row],[                                                   aaaaТовар]]=\"\",RIGHTB(ТабЧастьНакладной[[#This Row],[                                                   aaaaТовар]])=\".\"),\"\",IFERROR(VLOOKUP(9E+307,A$1:INDEX(A:A,ROW()-1),1),)+1)","v":40},"Вэст футболка, бордовый, размер 64, ШК 4650105293096",10,{"$f":"VLOOKUP(ТабЧастьНакладной[[                                                   aaaaТовар]],#REF!,2,0)","v":{"$error":"#REF!"}},{"$f":"C47*D47","v":{"$error":"#REF!"}}]
[{"$f":"IF(OR(ТабЧастьНакладной[[#This Row],[                                                   aaaaТовар]]=\"\",RIGHTB(ТабЧастьНакладной[[#This Row],[                                                   aaaaТовар]])=\".\"),\"\",IFERROR(VLOOKUP(9E+307,A$1:INDEX(A:A,ROW()-1),1),)+1)","v":""},"Вэст футболка, бордовый.",55,{"$f":"VLOOKUP(ТабЧастьНакладной[[                                                   aaaaТовар]],#REF!,2,0)","v":{"$error":"#REF!"}},{"$f":"C48*D48","v":{"$error":"#REF!"}}]
[{"$f":"IF(OR(ТабЧастьНакладной[[#This Row],[                                                   aaaaТовар]]=\"\",RIGHTB(ТабЧастьНакладной[[#This Row],[                                                   aaaaТовар]])=\".\"),\"\",IFERROR(VLOOKUP(9E+307,A$1:INDEX(A:A,ROW()-1),1),)+1)","v":41},"Вэст футболка, темно-синий, размер 46, ШК 4650105293102",1,{"$f":"VLOOKUP(ТабЧастьНакладной[[                                                   aaaaТовар]],#REF!,2,0)","v":{"$error":"#REF!"}},{"$f":"C49*D49","v":{"$error":"#REF!"}}]
[{"$f":"IF(OR(ТабЧастьНакладной[[#This Row],[                                                   aaaaТовар]]=\"\",RIGHTB(ТабЧастьНакладной[[#This Row],[                                                   aaaaТовар]])=\".\"),\"\",IFERROR(VLOOKUP(9E+307,A$1:INDEX(A:A,ROW()-1),1),)+1)","v":42},"Вэст футболка, темно-синий, размер 48, ШК 4650105293119",2,{"$f":"VLOOKUP(ТабЧастьНакладной[[                                                   aaaaТовар]],#REF!,2,0)","v":{"$error":"#REF!"}},{"$f":"C50*D50","v":{"$error":"#REF!"}}]
[{"$f":"IF(OR(ТабЧастьНакладной[[#This Row],[                                                   aaaaТовар]]=\"\",RIGHTB(ТабЧастьНакладной[[#This Row],[                                                   aaaaТовар]])=\".\"),\"\",IFERROR(VLOOKUP(9E+307,A$1:INDEX(A:A,ROW()-1),1),)+1)","v":43},"Вэст футболка, темно-синий, размер 50, ШК 4650105293126",3,{"$f":"VLOOKUP(ТабЧастьНакладной[[                                                   aaaaТовар]],#REF!,2,0)","v":{"$error":"#REF!"}},{"$f":"C51*D51","v":{"$error":"#REF!"}}]
[{"$f":"IF(OR(ТабЧастьНакладной[[#This Row],[                                                   aaaaТовар]]=\"\",RIGHTB(ТабЧастьНакладной[[#This Row],[                                                   aaaaТовар]])=\".\"),\"\",IFERROR(VLOOKUP(9E+307,A$1:INDEX(A:A,ROW()-1),1),)+1)","v":44},"Вэст футболка, темно-синий, размер 52, ШК 4650105293133",4,{"$f":"VLOOKUP(ТабЧастьНакладной[[                                                   aaaaТовар]],#REF!,2,0)","v":{"$error":"#REF!"}},{"$f":"C52*D52","v":{"$error":"#REF!"}}]
[{"$f":"IF(OR(ТабЧастьНакладной[[#This Row],[                                                   aaaaТовар]]=\"\",RIGHTB(ТабЧастьНакладной[[#This Row],[                                                   aaaaТовар]])=\".\"),\"\",IFERROR(VLOOKUP(9E+307,A$1:INDEX(A:A,ROW()-1),1),)+1)","v":45},"Вэст футболка, темно-синий, размер 54, ШК 4650105293140",5,{"$f":"VLOOKUP(ТабЧастьНакладной[[                                                   aaaaТовар]],#REF!,2,0)","v":{"$error":"#REF!"}},{"$f":"C53*D53","v":{"$error":"#REF!"}}]
[{"$f":"IF(OR(ТабЧастьНакладной[[#This Row],[                                                   aaaaТовар]]=\"\",RIGHTB(ТабЧастьНакладной[[#This Row],[                                                   aaaaТовар]])=\".\"),\"\",IFERROR(VLOOKUP(9E+307,A$1:INDEX(A:A,ROW()-1),1),)+1)","v":46},"Вэст футболка, темно-синий, размер 56, ШК 4650105293157",6,{"$f":"VLOOKUP(ТабЧастьНакладной[[                                                   aaaaТовар]],#REF!,2,0)","v":{"$error":"#REF!"}},{"$f":"C54*D54","v":{"$error":"#REF!"}}]
[{"$f":"IF(OR(ТабЧастьНакладной[[#This Row],[                                                   aaaaТовар]]=\"\",RIGHTB(ТабЧастьНакладной[[#This Row],[                                                   aaaaТовар]])=\".\"),\"\",IFERROR(VLOOKUP(9E+307,A$1:INDEX(A:A,ROW()-1),1),)+1)","v":47},"Вэст футболка, темно-синий, размер 58, ШК 4650105293164",7,{"$f":"VLOOKUP(ТабЧастьНакладной[[                                                   aaaaТовар]],#REF!,2,0)","v":{"$error":"#REF!"}},{"$f":"C55*D55","v":{"$error":"#REF!"}}]
[{"$f":"IF(OR(ТабЧастьНакладной[[#This Row],[                                                   aaaaТовар]]=\"\",RIGHTB(ТабЧастьНакладной[[#This Row],[                                                   aaaaТовар]])=\".\"),\"\",IFERROR(VLOOKUP(9E+307,A$1:INDEX(A:A,ROW()-1),1),)+1)","v":48},"Вэст футболка, темно-синий, размер 60, ШК 4650105293171",8,{"$f":"VLOOKUP(ТабЧастьНакладной[[                                                   aaaaТовар]],#REF!,2,0)","v":{"$error":"#REF!"}},{"$f":"C56*D56","v":{"$error":"#REF!"}}]
[{"$f":"IF(OR(ТабЧастьНакладной[[#This Row],[                                                   aaaaТовар]]=\"\",RIGHTB(ТабЧастьНакладной[[#This Row],[                                                   aaaaТовар]])=\".\"),\"\",IFERROR(VLOOKUP(9E+307,A$1:INDEX(A:A,ROW()-1),1),)+1)","v":49},"Вэст футболка, темно-синий, размер 62, ШК 4650105293188",9,{"$f":"VLOOKUP(ТабЧастьНакладной[[                                                   aaaaТовар]],#REF!,2,0)","v":{"$error":"#REF!"}},{"$f":"C57*D57","v":{"$error":"#REF!"}}]
[{"$f":"IF(OR(ТабЧастьНакладной[[#This Row],[                                                   aaaaТовар]]=\"\",RIGHTB(ТабЧастьНакладной[[#This Row],[                                                   aaaaТовар]])=\".\"),\"\",IFERROR(VLOOKUP(9E+307,A$1:INDEX(A:A,ROW()-1),1),)+1)","v":50},"Вэст футболка, темно-синий, размер 64, ШК 4650105293195",10,{"$f":"VLOOKUP(ТабЧастьНакладной[[                                                   aaaaТовар]],#REF!,2,0)","v":{"$error":"#REF!"}},{"$f":"C58*D58","v":{"$error":"#REF!"}}]
[{"$f":"IF(OR(ТабЧастьНакладной[[#This Row],[                                                   aaaaТовар]]=\"\",RIGHTB(ТабЧастьНакладной[[#This Row],[                                                   aaaaТовар]])=\".\"),\"\",IFERROR(VLOOKUP(9E+307,A$1:INDEX(A:A,ROW()-1),1),)+1)","v":""},"Вэст футболка, темно-синий.",55,{"$f":"VLOOKUP(ТабЧастьНакладной[[                                                   aaaaТовар]],#REF!,2,0)","v":{"$error":"#REF!"}},{"$f":"C59*D59","v":{"$error":"#REF!"}}]
[{"$f":"IF(OR(ТабЧастьНакладной[[#This Row],[                                                   aaaaТовар]]=\"\",RIGHTB(ТабЧастьНакладной[[#This Row],[                                                   aaaaТовар]])=\".\"),\"\",IFERROR(VLOOKUP(9E+307,A$1:INDEX(A:A,ROW()-1),1),)+1)","v":51},"Грин костюм, графит, размер 42. ШК 4650105044629",null,{"$f":"VLOOKUP(ТабЧастьНакладной[[                                                   aaaaТовар]],#REF!,2,0)","v":{"$error":"#REF!"}},{"$f":"C60*D60","v":{"$error":"#REF!"}}]
[{"$f":"IF(OR(ТабЧастьНакладной[[#This Row],[                                                   aaaaТовар]]=\"\",RIGHTB(ТабЧастьНакладной[[#This Row],[                                                   aaaaТовар]])=\".\"),\"\",IFERROR(VLOOKUP(9E+307,A$1:INDEX(A:A,ROW()-1),1),)+1)","v":52},"Грин костюм, графит, размер 44. ШК 4650105044636",null,{"$f":"VLOOKUP(ТабЧастьНакладной[[                                                   aaaaТовар]],#REF!,2,0)","v":{"$error":"#REF!"}},{"$f":"C61*D61","v":{"$error":"#REF!"}}]
[{"$f":"IF(OR(ТабЧастьНакладной[[#This Row],[                                                   aaaaТовар]]=\"\",RIGHTB(ТабЧастьНакладной[[#This Row],[                                                   aaaaТовар]])=\".\"),\"\",IFERROR(VLOOKUP(9E+307,A$1:INDEX(A:A,ROW()-1),1),)+1)","v":53},"Грин костюм, графит, размер 46. ШК 4650105044643",null,{"$f":"VLOOKUP(ТабЧастьНакладной[[                                                   aaaaТовар]],#REF!,2,0)","v":{"$error":"#REF!"}},{"$f":"C62*D62","v":{"$error":"#REF!"}}]
[{"$f":"IF(OR(ТабЧастьНакладной[[#This Row],[                                                   aaaaТовар]]=\"\",RIGHTB(ТабЧастьНакладной[[#This Row],[                                                   aaaaТовар]])=\".\"),\"\",IFERROR(VLOOKUP(9E+307,A$1:INDEX(A:A,ROW()-1),1),)+1)","v":54},"Грин костюм, графит, размер 48. ШК 4650105044650",null,{"$f":"VLOOKUP(ТабЧастьНакладной[[                                                   aaaaТовар]],#REF!,2,0)","v":{"$error":"#REF!"}},{"$f":"C63*D63","v":{"$error":"#REF!"}}]
[{"$f":"IF(OR(ТабЧастьНакладной[[#This Row],[                                                   aaaaТовар]]=\"\",RIGHTB(ТабЧастьНакладной[[#This Row],[                                                   aaaaТовар]])=\".\"),\"\",IFERROR(VLOOKUP(9E+307,A$1:INDEX(A:A,ROW()-1),1),)+1)","v":55},"Грин костюм, графит, размер 50. ШК 4650105044667",null,{"$f":"VLOOKUP(ТабЧастьНакладной[[                                                   aaaaТовар]],#REF!,2,0)","v":{"$error":"#REF!"}},{"$f":"C64*D64","v":{"$error":"#REF!"}}]
[{"$f":"IF(OR(ТабЧастьНакладной[[#This Row],[                                                   aaaaТовар]]=\"\",RIGHTB(ТабЧастьНакладной[[#This Row],[                                                   aaaaТовар]])=\".\"),\"\",IFERROR(VLOOKUP(9E+307,A$1:INDEX(A:A,ROW()-1),1),)+1)","v":56},"Грин костюм, графит, размер 52. ШК 4650105044674",null,{"$f":"VLOOKUP(ТабЧастьНакладной[[                                                   aaaaТовар]],#REF!,2,0)","v":{"$error":"#REF!"}},{"$f":"C65*D65","v":{"$error":"#REF!"}}]
[{"$f":"IF(OR(ТабЧастьНакладной[[#This Row],[                                                   aaaaТовар]]=\"\",RIGHTB(ТабЧастьНакладной[[#This Row],[                                                   aaaaТовар]])=\".\"),\"\",IFERROR(VLOOKUP(9E+307,A$1:INDEX(A:A,ROW()-1),1),)+1)","v":""},"Грин костюм, графит.",null,{"$f":"VLOOKUP(ТабЧастьНакладной[[                                                   aaaaТовар]],#REF!,2,0)","v":{"$error":"#REF!"}},{"$f":"C66*D66","v":{"$error":"#REF!"}}]
[{"$f":"IF(OR(ТабЧастьНакладной[[#This Row],[                                                   aaaaТовар]]=\"\",RIGHTB(ТабЧастьНакладной[[#This Row],[                                                   aaaaТовар]])=\".\"),\"\",IFERROR(VLOOKUP(9E+307,A$1:INDEX(A:A,ROW()-1),1),)+1)","v":57},"Грин костюм, индиго, размер 42. ШК:4650105044681",null,{"$f":"VLOOKUP(ТабЧастьНакладной[[                                                   aaaaТовар]],#REF!,2,0)","v":{"$error":"#REF!"}},{"$f":"C67*D67","v":{"$error":"#REF!"}}]
[{"$f":"IF(OR(ТабЧастьНакладной[[#This Row],[                                                   aaaaТовар]]=\"\",RIGHTB(ТабЧастьНакладной[[#This Row],[                                                   aaaaТовар]])=\".\"),\"\",IFERROR(VLOOKUP(9E+307,A$1:INDEX(A:A,ROW()-1),1),)+1)","v":58},"Грин костюм, индиго, размер 44. ШК:4650105044698",null,{"$f":"VLOOKUP(ТабЧастьНакладной[[                                                   aaaaТовар]],#REF!,2,0)","v":{"$error":"#REF!"}},{"$f":"C68*D68","v":{"$error":"#REF!"}}]
[{"$f":"IF(OR(ТабЧастьНакладной[[#This Row],[                                                   aaaaТовар]]=\"\",RIGHTB(ТабЧастьНакладной[[#This Row],[                                                   aaaaТовар]])=\".\"),\"\",IFERROR(VLOOKUP(9E+307,A$1:INDEX(A:A,ROW()-1),1),)+1)","v":59},"Грин костюм, индиго, размер 46. ШК:4650105044704",null,{"$f":"VLOOKUP(ТабЧастьНакладной[[                                                   aaaaТовар]],#REF!,2,0)","v":{"$error":"#REF!"}},{"$f":"C69*D69","v":{"$error":"#REF!"}}]
[{"$f":"IF(OR(ТабЧастьНакладной[[#This Row],[                                                   aaaaТовар]]=\"\",RIGHTB(ТабЧастьНакладной[[#This Row],[                                                   aaaaТовар]])=\".\"),\"\",IFERROR(VLOOKUP(9E+307,A$1:INDEX(A:A,ROW()-1),1),)+1)","v":60},"Грин костюм, индиго, размер 48. ШК:4650105044711",null,{"$f":"VLOOKUP(ТабЧастьНакладной[[                                                   aaaaТовар]],#REF!,2,0)","v":{"$error":"#REF!"}},{"$f":"C70*D70","v":{"$error":"#REF!"}}]
[{"$f":"IF(OR(ТабЧастьНакладной[[#This Row],[                                                   aaaaТовар]]=\"\",RIGHTB(ТабЧастьНакладной[[#This Row],[                                                   aaaaТовар]])=\".\"),\"\",IFERROR(VLOOKUP(9E+307,A$1:INDEX(A:A,ROW()-1),1),)+1)","v":61},"Грин костюм, индиго, размер 50. ШК:4650105044728",null,{"$f":"VLOOKUP(ТабЧастьНакладной[[                                                   aaaaТовар]],#REF!,2,0)","v":{"$error":"#REF!"}},{"$f":"C71*D71","v":{"$error":"#REF!"}}]
[{"$f":"IF(OR(ТабЧастьНакладной[[#This Row],[                                                   aaaaТовар]]=\"\",RIGHTB(ТабЧастьНакладной[[#This Row],[                                                   aaaaТовар]])=\".\"),\"\",IFERROR(VLOOKUP(9E+307,A$1:INDEX(A:A,ROW()-1),1),)+1)","v":62},"Грин костюм, индиго, размер 52. ШК:4650105044735",null,{"$f":"VLOOKUP(ТабЧастьНакладной[[                                                   aaaaТовар]],#REF!,2,0)","v":{"$error":"#REF!"}},{"$f":"C72*D72","v":{"$error":"#REF!"}}]
[{"$f":"IF(OR(ТабЧастьНакладной[[#This Row],[                                                   aaaaТовар]]=\"\",RIGHTB(ТабЧастьНакладной[[#This Row],[                                                   aaaaТовар]])=\".\"),\"\",IFERROR(VLOOKUP(9E+307,A$1:INDEX(A:A,ROW()-1),1),)+1)","v":""},"Грин костюм, индиго.",null,{"$f":"VLOOKUP(ТабЧастьНакладной[[                                                   aaaaТовар]],#REF!,2,0)","v":{"$error":"#REF!"}},{"$f":"C73*D73","v":{"$error":"#REF!"}}]
[{"$f":"IF(OR(ТабЧастьНакладной[[#This Row],[                                                   aaaaТовар]]=\"\",RIGHTB(ТабЧастьНакладной[[#This Row],[                                                   aaaaТовар]])=\".\"),\"\",IFERROR(VLOOKUP(9E+307,A$1:INDEX(A:A,ROW()-1),1),)+1)","v":63},"Дерево туника, графит, размер 44, ШК 4650105277355",null,{"$f":"VLOOKUP(ТабЧастьНакладной[[                                                   aaaaТовар]],#REF!,2,0)","v":{"$error":"#REF!"}},{"$f":"C74*D74","v":{"$error":"#REF!"}}]
[{"$f":"IF(OR(ТабЧастьНакладной[[#This Row],[                                                   aaaaТовар]]=\"\",RIGHTB(ТабЧастьНакладной[[#This Row],[                                                   aaaaТовар]])=\".\"),\"\",IFERROR(VLOOKUP(9E+307,A$1:INDEX(A:A,ROW()-1),1),)+1)","v":64},"Дерево туника, графит, размер 46, ШК 4650105277362",null,{"$f":"VLOOKUP(ТабЧастьНакладной[[                                                   aaaaТовар]],#REF!,2,0)","v":{"$error":"#REF!"}},{"$f":"C75*D75","v":{"$error":"#REF!"}}]
[{"$f":"IF(OR(ТабЧастьНакладной[[#This Row],[                                                   aaaaТовар]]=\"\",RIGHTB(ТабЧастьНакладной[[#This Row],[                                                   aaaaТовар]])=\".\"),\"\",IFERROR(VLOOKUP(9E+307,A$1:INDEX(A:A,ROW()-1),1),)+1)","v":65},"Дерево туника, графит, размер 48, ШК 4650105277379",null,{"$f":"VLOOKUP(ТабЧастьНакладной[[                                                   aaaaТовар]],#REF!,2,0)","v":{"$error":"#REF!"}},{"$f":"C76*D76","v":{"$error":"#REF!"}}]
[{"$f":"IF(OR(ТабЧастьНакладной[[#This Row],[                                                   aaaaТовар]]=\"\",RIGHTB(ТабЧастьНакладной[[#This Row],[                                                   aaaaТовар]])=\".\"),\"\",IFERROR(VLOOKUP(9E+307,A$1:INDEX(A:A,ROW()-1),1),)+1)","v":66},"Дерево туника, графит, размер 50, ШК 4650105277386",null,{"$f":"VLOOKUP(ТабЧастьНакладной[[                                                   aaaaТовар]],#REF!,2,0)","v":{"$error":"#REF!"}},{"$f":"C77*D77","v":{"$error":"#REF!"}}]
[{"$f":"IF(OR(ТабЧастьНакладной[[#This Row],[                                                   aaaaТовар]]=\"\",RIGHTB(ТабЧастьНакладной[[#This Row],[                                                   aaaaТовар]])=\".\"),\"\",IFERROR(VLOOKUP(9E+307,A$1:INDEX(A:A,ROW()-1),1),)+1)","v":67},"Дерево туника, графит, размер 52, ШК 4650105277393",null,{"$f":"VLOOKUP(ТабЧастьНакладной[[                                                   aaaaТовар]],#REF!,2,0)","v":{"$error":"#REF!"}},{"$f":"C78*D78","v":{"$error":"#REF!"}}]
[{"$f":"IF(OR(ТабЧастьНакладной[[#This Row],[                                                   aaaaТовар]]=\"\",RIGHTB(ТабЧастьНакладной[[#This Row],[                                                   aaaaТовар]])=\".\"),\"\",IFERROR(VLOOKUP(9E+307,A$1:INDEX(A:A,ROW()-1),1),)+1)","v":68},"Дерево туника, графит, размер 54, ШК 4650105277409",null,{"$f":"VLOOKUP(ТабЧастьНакладной[[                                                   aaaaТовар]],#REF!,2,0)","v":{"$error":"#REF!"}},{"$f":"C79*D79","v":{"$error":"#REF!"}}]
[{"$f":"IF(OR(ТабЧастьНакладной[[#This Row],[                                                   aaaaТовар]]=\"\",RIGHTB(ТабЧастьНакладной[[#This Row],[                                                   aaaaТовар]])=\".\"),\"\",IFERROR(VLOOKUP(9E+307,A$1:INDEX(A:A,ROW()-1),1),)+1)","v":69},"Дерево туника, графит, размер 56, ШК 4650105277416",null,{"$f":"VLOOKUP(ТабЧастьНакладной[[                                                   aaaaТовар]],#REF!,2,0)","v":{"$error":"#REF!"}},{"$f":"C80*D80","v":{"$error":"#REF!"}}]
[{"$f":"IF(OR(ТабЧастьНакладной[[#This Row],[                                                   aaaaТовар]]=\"\",RIGHTB(ТабЧастьНакладной[[#This Row],[                                                   aaaaТовар]])=\".\"),\"\",IFERROR(VLOOKUP(9E+307,A$1:INDEX(A:A,ROW()-1),1),)+1)","v":70},"Дерево туника, графит, размер 58, ШК 4650105277423",null,{"$f":"VLOOKUP(ТабЧастьНакладной[[                                                   aaaaТовар]],#REF!,2,0)","v":{"$error":"#REF!"}},{"$f":"C81*D81","v":{"$error":"#REF!"}}]
[{"$f":"IF(OR(ТабЧастьНакладной[[#This Row],[                                                   aaaaТовар]]=\"\",RIGHTB(ТабЧастьНакладной[[#This Row],[                                                   aaaaТовар]])=\".\"),\"\",IFERROR(VLOOKUP(9E+307,A$1:INDEX(A:A,ROW()-1),1),)+1)","v":""},"Дерево туника, графит.",null,{"$f":"VLOOKUP(ТабЧастьНакладной[[                                                   aaaaТовар]],#REF!,2,0)","v":{"$error":"#REF!"}},{"$f":"C82*D82","v":{"$error":"#REF!"}}]
[{"$f":"IF(OR(ТабЧастьНакладной[[#This Row],[                                                   aaaaТовар]]=\"\",RIGHTB(ТабЧастьНакладной[[#This Row],[                                                   aaaaТовар]])=\".\"),\"\",IFERROR(VLOOKUP(9E+307,A$1:INDEX(A:A,ROW()-1),1),)+1)","v":71},"Дерево туника, индиго, размер 44, ШК 4650105277270",null,{"$f":"VLOOKUP(ТабЧастьНакладной[[                                                   aaaaТовар]],#REF!,2,0)","v":{"$error":"#REF!"}},{"$f":"C83*D83","v":{"$error":"#REF!"}}]
[{"$f":"IF(OR(ТабЧастьНакладной[[#This Row],[                                                   aaaaТовар]]=\"\",RIGHTB(ТабЧастьНакладной[[#This Row],[                                                   aaaaТовар]])=\".\"),\"\",IFERROR(VLOOKUP(9E+307,A$1:INDEX(A:A,ROW()-1),1),)+1)","v":72},"Дерево туника, индиго, размер 46, ШК 4650105277287",null,{"$f":"VLOOKUP(ТабЧастьНакладной[[                                                   aaaaТовар]],#REF!,2,0)","v":{"$error":"#REF!"}},{"$f":"C84*D84","v":{"$error":"#REF!"}}]
[{"$f":"IF(OR(ТабЧастьНакладной[[#This Row],[                                                   aaaaТовар]]=\"\",RIGHTB(ТабЧастьНакладной[[#This Row],[                                                   aaaaТовар]])=\".\"),\"\",IFERROR(VLOOKUP(9E+307,A$1:INDEX(A:A,ROW()-1),1),)+1)","v":73},"Дерево туника, индиго, размер 48, ШК 4650105277294",null,{"$f":"VLOOKUP(ТабЧастьНакладной[[                                                   aaaaТовар]],#REF!,2,0)","v":{"$error":"#REF!"}},{"$f":"C85*D85","v":{"$error":"#REF!"}}]
[{"$f":"IF(OR(ТабЧастьНакладной[[#This Row],[                                                   aaaaТовар]]=\"\",RIGHTB(ТабЧастьНакладной[[#This Row],[                                                   aaaaТовар]])=\".\"),\"\",IFERROR(VLOOKUP(9E+307,A$1:INDEX(A:A,ROW()-1),1),)+1)","v":74},"Дерево туника, индиго, размер 50, ШК 4650105277300",null,{"$f":"VLOOKUP(ТабЧастьНакладной[[                                                   aaaaТовар]],#REF!,2,0)","v":{"$error":"#REF!"}},{"$f":"C86*D86","v":{"$error":"#REF!"}}]
[{"$f":"IF(OR(ТабЧастьНакладной[[#This Row],[                                                   aaaaТовар]]=\"\",RIGHTB(ТабЧастьНакладной[[#This Row],[                                                   aaaaТовар]])=\".\"),\"\",IFERROR(VLOOKUP(9E+307,A$1:INDEX(A:A,ROW()-1),1),)+1)","v":75},"Дерево туника, индиго, размер 52, ШК 4650105277317",null,{"$f":"VLOOKUP(ТабЧастьНакладной[[                                                   aaaaТовар]],#REF!,2,0)","v":{"$error":"#REF!"}},{"$f":"C87*D87","v":{"$error":"#REF!"}}]
[{"$f":"IF(OR(ТабЧастьНакладной[[#This Row],[                                                   aaaaТовар]]=\"\",RIGHTB(ТабЧастьНакладной[[#This Row],[                                                   aaaaТовар]])=\".\"),\"\",IFERROR(VLOOKUP(9E+307,A$1:INDEX(A:A,ROW()-1),1),)+1)","v":76},"Дерево туника, индиго, размер 54, ШК 4650105277324",null,{"$f":"VLOOKUP(ТабЧастьНакладной[[                                                   aaaaТовар]],#REF!,2,0)","v":{"$error":"#REF!"}},{"$f":"C88*D88","v":{"$error":"#REF!"}}]
[{"$f":"IF(OR(ТабЧастьНакладной[[#This Row],[                                                   aaaaТовар]]=\"\",RIGHTB(ТабЧастьНакладной[[#This Row],[                                                   aaaaТовар]])=\".\"),\"\",IFERROR(VLOOKUP(9E+307,A$1:INDEX(A:A,ROW()-1),1),)+1)","v":77},"Дерево туника, индиго, размер 56, ШК 4650105277331",null,{"$f":"VLOOKUP(ТабЧастьНакладной[[                                                   aaaaТовар]],#REF!,2,0)","v":{"$error":"#REF!"}},{"$f":"C89*D89","v":{"$error":"#REF!"}}]
[{"$f":"IF(OR(ТабЧастьНакладной[[#This Row],[                                                   aaaaТовар]]=\"\",RIGHTB(ТабЧастьНакладной[[#This Row],[                                                   aaaaТовар]])=\".\"),\"\",IFERROR(VLOOKUP(9E+307,A$1:INDEX(A:A,ROW()-1),1),)+1)","v":78},"Дерево туника, индиго, размер 58, ШК 4650105277348",null,{"$f":"VLOOKUP(ТабЧастьНакладной[[                                                   aaaaТовар]],#REF!,2,0)","v":{"$error":"#REF!"}},{"$f":"C90*D90","v":{"$error":"#REF!"}}]
[{"$f":"IF(OR(ТабЧастьНакладной[[#This Row],[                                                   aaaaТовар]]=\"\",RIGHTB(ТабЧастьНакладной[[#This Row],[                                                   aaaaТовар]])=\".\"),\"\",IFERROR(VLOOKUP(9E+307,A$1:INDEX(A:A,ROW()-1),1),)+1)","v":""},"Дерево туника, индиго.",null,{"$f":"VLOOKUP(ТабЧастьНакладной[[                                                   aaaaТовар]],#REF!,2,0)","v":{"$error":"#REF!"}},{"$f":"C91*D91","v":{"$error":"#REF!"}}]
[{"$f":"IF(OR(ТабЧастьНакладной[[#This Row],[                                                   aaaaТовар]]=\"\",RIGHTB(ТабЧастьНакладной[[#This Row],[                                                   aaaaТовар]])=\".\"),\"\",IFERROR(VLOOKUP(9E+307,A$1:INDEX(A:A,ROW()-1),1),)+1)","v":79},"Дзен кофта, меланж, размер 42. ШК: 4650105137123",null,{"$f":"VLOOKUP(ТабЧастьНакладной[[                                                   aaaaТовар]],#REF!,2,0)","v":{"$error":"#REF!"}},{"$f":"C92*D92","v":{"$error":"#REF!"}}]
[{"$f":"IF(OR(ТабЧастьНакладной[[#This Row],[                                                   aaaaТовар]]=\"\",RIGHTB(ТабЧастьНакладной[[#This Row],[                                                   aaaaТовар]])=\".\"),\"\",IFERROR(VLOOKUP(9E+307,A$1:INDEX(A:A,ROW()-1),1),)+1)","v":80},"Дзен кофта, меланж, размер 44. ШК: 4650105137130",null,{"$f":"VLOOKUP(ТабЧастьНакладной[[                                                   aaaaТовар]],#REF!,2,0)","v":{"$error":"#REF!"}},{"$f":"C93*D93","v":{"$error":"#REF!"}}]
[{"$f":"IF(OR(ТабЧастьНакладной[[#This Row],[                                                   aaaaТовар]]=\"\",RIGHTB(ТабЧастьНакладной[[#This Row],[                                                   aaaaТовар]])=\".\"),\"\",IFERROR(VLOOKUP(9E+307,A$1:INDEX(A:A,ROW()-1),1),)+1)","v":81},"Дзен кофта, меланж, размер 46. ШК: 4650105137147",null,{"$f":"VLOOKUP(ТабЧастьНакладной[[                                                   aaaaТовар]],#REF!,2,0)","v":{"$error":"#REF!"}},{"$f":"C94*D94","v":{"$error":"#REF!"}}]
[{"$f":"IF(OR(ТабЧастьНакладной[[#This Row],[                                                   aaaaТовар]]=\"\",RIGHTB(ТабЧастьНакладной[[#This Row],[                                                   aaaaТовар]])=\".\"),\"\",IFERROR(VLOOKUP(9E+307,A$1:INDEX(A:A,ROW()-1),1),)+1)","v":82},"Дзен кофта, меланж, размер 48. ШК: 4650105137154",null,{"$f":"VLOOKUP(ТабЧастьНакладной[[                                                   aaaaТовар]],#REF!,2,0)","v":{"$error":"#REF!"}},{"$f":"C95*D95","v":{"$error":"#REF!"}}]
[{"$f":"IF(OR(ТабЧастьНакладной[[#This Row],[                                                   aaaaТовар]]=\"\",RIGHTB(ТабЧастьНакладной[[#This Row],[                                                   aaaaТовар]])=\".\"),\"\",IFERROR(VLOOKUP(9E+307,A$1:INDEX(A:A,ROW()-1),1),)+1)","v":83},"Дзен кофта, меланж, размер 50. ШК: 4650105137161",null,{"$f":"VLOOKUP(ТабЧастьНакладной[[                                                   aaaaТовар]],#REF!,2,0)","v":{"$error":"#REF!"}},{"$f":"C96*D96","v":{"$error":"#REF!"}}]
[{"$f":"IF(OR(ТабЧастьНакладной[[#This Row],[                                                   aaaaТовар]]=\"\",RIGHTB(ТабЧастьНакладной[[#This Row],[                                                   aaaaТовар]])=\".\"),\"\",IFERROR(VLOOKUP(9E+307,A$1:INDEX(A:A,ROW()-1),1),)+1)","v":84},"Дзен кофта, меланж, размер 52. ШК: 4650105137178",null,{"$f":"VLOOKUP(ТабЧастьНакладной[[                                                   aaaaТовар]],#REF!,2,0)","v":{"$error":"#REF!"}},{"$f":"C97*D97","v":{"$error":"#REF!"}}]
[{"$f":"IF(OR(ТабЧастьНакладной[[#This Row],[                                                   aaaaТовар]]=\"\",RIGHTB(ТабЧастьНакладной[[#This Row],[                                                   aaaaТовар]])=\".\"),\"\",IFERROR(VLOOKUP(9E+307,A$1:INDEX(A:A,ROW()-1),1),)+1)","v":""},"Дзен кофта, меланж.",null,{"$f":"VLOOKUP(ТабЧастьНакладной[[                                                   aaaaТовар]],#REF!,2,0)","v":{"$error":"#REF!"}},{"$f":"C98*D98","v":{"$error":"#REF!"}}]
[{"$f":"IF(OR(ТабЧастьНакладной[[#This Row],[                                                   aaaaТовар]]=\"\",RIGHTB(ТабЧастьНакладной[[#This Row],[                                                   aaaaТовар]])=\".\"),\"\",IFERROR(VLOOKUP(9E+307,A$1:INDEX(A:A,ROW()-1),1),)+1)","v":85},"Дымка футболка, белый, размер 44, ШК 4650105315484",null,{"$f":"VLOOKUP(ТабЧастьНакладной[[                                                   aaaaТовар]],#REF!,2,0)","v":{"$error":"#REF!"}},{"$f":"C99*D99","v":{"$error":"#REF!"}}]
[{"$f":"IF(OR(ТабЧастьНакладной[[#This Row],[                                                   aaaaТовар]]=\"\",RIGHTB(ТабЧастьНакладной[[#This Row],[                                                   aaaaТовар]])=\".\"),\"\",IFERROR(VLOOKUP(9E+307,A$1:INDEX(A:A,ROW()-1),1),)+1)","v":86},"Дымка футболка, белый, размер 46, ШК 4650105315491",null,{"$f":"VLOOKUP(ТабЧастьНакладной[[                                                   aaaaТовар]],#REF!,2,0)","v":{"$error":"#REF!"}},{"$f":"C100*D100","v":{"$error":"#REF!"}}]
[{"$f":"IF(OR(ТабЧастьНакладной[[#This Row],[                                                   aaaaТовар]]=\"\",RIGHTB(ТабЧастьНакладной[[#This Row],[                                                   aaaaТовар]])=\".\"),\"\",IFERROR(VLOOKUP(9E+307,A$1:INDEX(A:A,ROW()-1),1),)+1)","v":87},"Дымка футболка, белый, размер 48, ШК 4650105315507",null,{"$f":"VLOOKUP(ТабЧастьНакладной[[                                                   aaaaТовар]],#REF!,2,0)","v":{"$error":"#REF!"}},{"$f":"C101*D101","v":{"$error":"#REF!"}}]
[{"$f":"IF(OR(ТабЧастьНакладной[[#This Row],[                                                   aaaaТовар]]=\"\",RIGHTB(ТабЧастьНакладной[[#This Row],[                                                   aaaaТовар]])=\".\"),\"\",IFERROR(VLOOKUP(9E+307,A$1:INDEX(A:A,ROW()-1),1),)+1)","v":88},"Дымка футболка, белый, размер 50, ШК 4650105315514",null,{"$f":"VLOOKUP(ТабЧастьНакладной[[                                                   aaaaТовар]],#REF!,2,0)","v":{"$error":"#REF!"}},{"$f":"C102*D102","v":{"$error":"#REF!"}}]
[{"$f":"IF(OR(ТабЧастьНакладной[[#This Row],[                                                   aaaaТовар]]=\"\",RIGHTB(ТабЧастьНакладной[[#This Row],[                                                   aaaaТовар]])=\".\"),\"\",IFERROR(VLOOKUP(9E+307,A$1:INDEX(A:A,ROW()-1),1),)+1)","v":89},"Дымка футболка, белый, размер 52, ШК 4650105315521",null,{"$f":"VLOOKUP(ТабЧастьНакладной[[                                                   aaaaТовар]],#REF!,2,0)","v":{"$error":"#REF!"}},{"$f":"C103*D103","v":{"$error":"#REF!"}}]
[{"$f":"IF(OR(ТабЧастьНакладной[[#This Row],[                                                   aaaaТовар]]=\"\",RIGHTB(ТабЧастьНакладной[[#This Row],[                                                   aaaaТовар]])=\".\"),\"\",IFERROR(VLOOKUP(9E+307,A$1:INDEX(A:A,ROW()-1),1),)+1)","v":90},"Дымка футболка, белый, размер 54, ШК 4650105315538",null,{"$f":"VLOOKUP(ТабЧастьНакладной[[                                                   aaaaТовар]],#REF!,2,0)","v":{"$error":"#REF!"}},{"$f":"C104*D104","v":{"$error":"#REF!"}}]
[{"$f":"IF(OR(ТабЧастьНакладной[[#This Row],[                                                   aaaaТовар]]=\"\",RIGHTB(ТабЧастьНакладной[[#This Row],[                                                   aaaaТовар]])=\".\"),\"\",IFERROR(VLOOKUP(9E+307,A$1:INDEX(A:A,ROW()-1),1),)+1)","v":91},"Дымка футболка, белый, размер 56, ШК 4650105315545",null,{"$f":"VLOOKUP(ТабЧастьНакладной[[                                                   aaaaТовар]],#REF!,2,0)","v":{"$error":"#REF!"}},{"$f":"C105*D105","v":{"$error":"#REF!"}}]
[{"$f":"IF(OR(ТабЧастьНакладной[[#This Row],[                                                   aaaaТовар]]=\"\",RIGHTB(ТабЧастьНакладной[[#This Row],[                                                   aaaaТовар]])=\".\"),\"\",IFERROR(VLOOKUP(9E+307,A$1:INDEX(A:A,ROW()-1),1),)+1)","v":92},"Дымка футболка, белый, размер 58, ШК 4650105315552",null,{"$f":"VLOOKUP(ТабЧастьНакладной[[                                                   aaaaТовар]],#REF!,2,0)","v":{"$error":"#REF!"}},{"$f":"C106*D106","v":{"$error":"#REF!"}}]
[{"$f":"IF(OR(ТабЧастьНакладной[[#This Row],[                                                   aaaaТовар]]=\"\",RIGHTB(ТабЧастьНакладной[[#This Row],[                                                   aaaaТовар]])=\".\"),\"\",IFERROR(VLOOKUP(9E+307,A$1:INDEX(A:A,ROW()-1),1),)+1)","v":""},"Дымка футболка, белый.",null,{"$f":"VLOOKUP(ТабЧастьНакладной[[                                                   aaaaТовар]],#REF!,2,0)","v":{"$error":"#REF!"}},{"$f":"C107*D107","v":{"$error":"#REF!"}}]
[{"$f":"IF(OR(ТабЧастьНакладной[[#This Row],[                                                   aaaaТовар]]=\"\",RIGHTB(ТабЧастьНакладной[[#This Row],[                                                   aaaaТовар]])=\".\"),\"\",IFERROR(VLOOKUP(9E+307,A$1:INDEX(A:A,ROW()-1),1),)+1)","v":93},"Дымка футболка, меланж, размер 44, ШК 4650105315569",null,{"$f":"VLOOKUP(ТабЧастьНакладной[[                                                   aaaaТовар]],#REF!,2,0)","v":{"$error":"#REF!"}},{"$f":"C108*D108","v":{"$error":"#REF!"}}]
[{"$f":"IF(OR(ТабЧастьНакладной[[#This Row],[                                                   aaaaТовар]]=\"\",RIGHTB(ТабЧастьНакладной[[#This Row],[                                                   aaaaТовар]])=\".\"),\"\",IFERROR(VLOOKUP(9E+307,A$1:INDEX(A:A,ROW()-1),1),)+1)","v":94},"Дымка футболка, меланж, размер 46, ШК 4650105315576",null,{"$f":"VLOOKUP(ТабЧастьНакладной[[                                                   aaaaТовар]],#REF!,2,0)","v":{"$error":"#REF!"}},{"$f":"C109*D109","v":{"$error":"#REF!"}}]
[{"$f":"IF(OR(ТабЧастьНакладной[[#This Row],[                                                   aaaaТовар]]=\"\",RIGHTB(ТабЧастьНакладной[[#This Row],[                                                   aaaaТовар]])=\".\"),\"\",IFERROR(VLOOKUP(9E+307,A$1:INDEX(A:A,ROW()-1),1),)+1)","v":95},"Дымка футболка, меланж, размер 48, ШК 4650105315583",null,{"$f":"VLOOKUP(ТабЧастьНакладной[[                                                   aaaaТовар]],#REF!,2,0)","v":{"$error":"#REF!"}},{"$f":"C110*D110","v":{"$error":"#REF!"}}]
[{"$f":"IF(OR(ТабЧастьНакладной[[#This Row],[                                                   aaaaТовар]]=\"\",RIGHTB(ТабЧастьНакладной[[#This Row],[                                                   aaaaТовар]])=\".\"),\"\",IFERROR(VLOOKUP(9E+307,A$1:INDEX(A:A,ROW()-1),1),)+1)","v":96},"Дымка футболка, меланж, размер 50, ШК 4650105315590",null,{"$f":"VLOOKUP(ТабЧастьНакладной[[                                                   aaaaТовар]],#REF!,2,0)","v":{"$error":"#REF!"}},{"$f":"C111*D111","v":{"$error":"#REF!"}}]
[{"$f":"IF(OR(ТабЧастьНакладной[[#This Row],[                                                   aaaaТовар]]=\"\",RIGHTB(ТабЧастьНакладной[[#This Row],[                                                   aaaaТовар]])=\".\"),\"\",IFERROR(VLOOKUP(9E+307,A$1:INDEX(A:A,ROW()-1),1),)+1)","v":97},"Дымка футболка, меланж, размер 52, ШК 4650105315606",null,{"$f":"VLOOKUP(ТабЧастьНакладной[[                                                   aaaaТовар]],#REF!,2,0)","v":{"$error":"#REF!"}},{"$f":"C112*D112","v":{"$error":"#REF!"}}]
[{"$f":"IF(OR(ТабЧастьНакладной[[#This Row],[                                                   aaaaТовар]]=\"\",RIGHTB(ТабЧастьНакладной[[#This Row],[                                                   aaaaТовар]])=\".\"),\"\",IFERROR(VLOOKUP(9E+307,A$1:INDEX(A:A,ROW()-1),1),)+1)","v":98},"Дымка футболка, меланж, размер 54, ШК 4650105315613",null,{"$f":"VLOOKUP(ТабЧастьНакладной[[                                                   aaaaТовар]],#REF!,2,0)","v":{"$error":"#REF!"}},{"$f":"C113*D113","v":{"$error":"#REF!"}}]
[{"$f":"IF(OR(ТабЧастьНакладной[[#This Row],[                                                   aaaaТовар]]=\"\",RIGHTB(ТабЧастьНакладной[[#This Row],[                                                   aaaaТовар]])=\".\"),\"\",IFERROR(VLOOKUP(9E+307,A$1:INDEX(A:A,ROW()-1),1),)+1)","v":99},"Дымка футболка, меланж, размер 56, ШК 4650105315620",null,{"$f":"VLOOKUP(ТабЧастьНакладной[[                                                   aaaaТовар]],#REF!,2,0)","v":{"$error":"#REF!"}},{"$f":"C114*D114","v":{"$error":"#REF!"}}]
[{"$f":"IF(OR(ТабЧастьНакладной[[#This Row],[                                                   aaaaТовар]]=\"\",RIGHTB(ТабЧастьНакладной[[#This Row],[                                                   aaaaТовар]])=\".\"),\"\",IFERROR(VLOOKUP(9E+307,A$1:INDEX(A:A,ROW()-1),1),)+1)","v":100},"Дымка футболка, меланж, размер 58, ШК 4650105315637",null,{"$f":"VLOOKUP(ТабЧастьНакладной[[                                                   aaaaТовар]],#REF!,2,0)","v":{"$error":"#REF!"}},{"$f":"C115*D115","v":{"$error":"#REF!"}}]
[{"$f":"IF(OR(ТабЧастьНакладной[[#This Row],[                                                   aaaaТовар]]=\"\",RIGHTB(ТабЧастьНакладной[[#This Row],[                                                   aaaaТовар]])=\".\"),\"\",IFERROR(VLOOKUP(9E+307,A$1:INDEX(A:A,ROW()-1),1),)+1)","v":""},"Дымка футболка, меланж.",null,{"$f":"VLOOKUP(ТабЧастьНакладной[[                                                   aaaaТовар]],#REF!,2,0)","v":{"$error":"#REF!"}},{"$f":"C116*D116","v":{"$error":"#REF!"}}]
[{"$f":"IF(OR(ТабЧастьНакладной[[#This Row],[                                                   aaaaТовар]]=\"\",RIGHTB(ТабЧастьНакладной[[#This Row],[                                                   aaaaТовар]])=\".\"),\"\",IFERROR(VLOOKUP(9E+307,A$1:INDEX(A:A,ROW()-1),1),)+1)","v":101},"Зигзаг футболка, белый, размер 44, ШК 4650105315248",null,{"$f":"VLOOKUP(ТабЧастьНакладной[[                                                   aaaaТовар]],#REF!,2,0)","v":{"$error":"#REF!"}},{"$f":"C117*D117","v":{"$error":"#REF!"}}]
[{"$f":"IF(OR(ТабЧастьНакладной[[#This Row],[                                                   aaaaТовар]]=\"\",RIGHTB(ТабЧастьНакладной[[#This Row],[                                                   aaaaТовар]])=\".\"),\"\",IFERROR(VLOOKUP(9E+307,A$1:INDEX(A:A,ROW()-1),1),)+1)","v":""},"Зигзаг футболка, белый.",null,{"$f":"VLOOKUP(ТабЧастьНакладной[[                                                   aaaaТовар]],#REF!,2,0)","v":{"$error":"#REF!"}},{"$f":"C118*D118","v":{"$error":"#REF!"}}]
[{"$f":"IF(OR(ТабЧастьНакладной[[#This Row],[                                                   aaaaТовар]]=\"\",RIGHTB(ТабЧастьНакладной[[#This Row],[                                                   aaaaТовар]])=\".\"),\"\",IFERROR(VLOOKUP(9E+307,A$1:INDEX(A:A,ROW()-1),1),)+1)","v":102},"Хава кофта, темно-синий, размер 50. Штрих-код: 4650105333129",4,{"$f":"VLOOKUP(ТабЧастьНакладной[[                                                   aaaaТовар]],#REF!,2,0)","v":{"$error":"#REF!"}},{"$f":"C119*D119","v":{"$error":"#REF!"}}]
[{"$f":"IF(OR(ТабЧастьНакладной[[#This Row],[                                                   aaaaТовар]]=\"\",RIGHTB(ТабЧастьНакладной[[#This Row],[                                                   aaaaТовар]])=\".\"),\"\",IFERROR(VLOOKUP(9E+307,A$1:INDEX(A:A,ROW()-1),1),)+1)","v":103},"Хава кофта, темно-синий, размер 52. Штрих-код: 4650105333136",3,{"$f":"VLOOKUP(ТабЧастьНакладной[[                                                   aaaaТовар]],#REF!,2,0)","v":{"$error":"#REF!"}},{"$f":"C120*D120","v":{"$error":"#REF!"}}]
[{"$f":"IF(OR(ТабЧастьНакладной[[#This Row],[                                                   aaaaТовар]]=\"\",RIGHTB(ТабЧастьНакладной[[#This Row],[                                                   aaaaТовар]])=\".\"),\"\",IFERROR(VLOOKUP(9E+307,A$1:INDEX(A:A,ROW()-1),1),)+1)","v":""},"Хава кофта, темно-синий.",7,{"$f":"VLOOKUP(ТабЧастьНакладной[[                                                   aaaaТовар]],#REF!,2,0)","v":{"$error":"#REF!"}},{"$f":"C121*D121","v":{"$error":"#REF!"}}]
[{"$f":"IF(OR(ТабЧастьНакладной[[#This Row],[                                                   aaaaТовар]]=\"\",RIGHTB(ТабЧастьНакладной[[#This Row],[                                                   aaaaТовар]])=\".\"),\"\",IFERROR(VLOOKUP(9E+307,A$1:INDEX(A:A,ROW()-1),1),)+1)","v":""},null,null,{"$f":"VLOOKUP(ТабЧастьНакладной[[                                                   aaaaТовар]],#REF!,2,0)","v":{"$error":"#REF!"}},{"$f":"C122*D122","v":{"$error":"#REF!"}}]
[{"$f":"IF(OR(ТабЧастьНакладной[[#This Row],[                                                   aaaaТовар]]=\"\",RIGHTB(ТабЧастьНакладной[[#This Row],[                                                   aaaaТовар]])=\".\"),\"\",IFERROR(VLOOKUP(9E+307,A$1:INDEX(A:A,ROW()-1),1),)+1)","v":""},null,null,{"$f":"VLOOKUP(ТабЧастьНакладной[[                                                   aaaaТовар]],#REF!,2,0)","v":{"$error":"#REF!"}},{"$f":"C123*D123","v":{"$error":"#REF!"}}]
["Итог",null,null,null,{"$f":"SUMIF(ТабЧастьНакладной[Сумма, руб.],\"<1E100\")","v":0}]
[]
[null,null,null,"НДС не облагается"]
[{"$f":"\"Всего наименований:\"&\" \"&MAX(ТабЧастьНакладной[№ п/п])&\",\"&\" \"&\"на сумму\"&\" \"&СП&\" \"&\"руб.\"","v":"Всего наименований: 103, на сумму 0 руб."}]
[{"$f":"SUBSTITUTE(PROPER(INDEX(n_4,MID(TEXT(СП,n0),1,1)+1)&INDEX(n0x,MID(TEXT(СП,n0),2,1)+1,MID(TEXT(СП,n0),3,1)+1)&IF(-MID(TEXT(СП,n0),1,3),\"миллиард\"&VLOOKUP(MID(TEXT(СП,n0),3,1)*AND(MID(TEXT(СП,n0),2,1)-1),мил,2),\"\")&INDEX(n_4,MID(TEXT(СП,n0),4,1)+1)&INDEX(n0x,MID(TEXT(СП,n0),5,1)+1,MID(TEXT(СП,n0),6,1)+1)&IF(-MID(TEXT(СП,n0),4,3),\"миллион\"&VLOOKUP(MID(TEXT(СП,n0),6,1)*AND(MID(TEXT(СП,n0),5,1)-1),мил,2),\"\")&INDEX(n_4,MID(TEXT(СП,n0),7,1)+1)&INDEX(n1x,MID(TEXT(СП,n0),8,1)+1,MID(TEXT(СП,n0),9,1)+1)&IF(-MID(TEXT(СП,n0),7,3),VLOOKUP(MID(TEXT(СП,n0),9,1)*AND(MID(TEXT(СП,n0),8,1)-1),тыс,2),\"\")&INDEX(n_4,MID(TEXT(СП,n0),10,1)+1)&INDEX(n0x,MID(TEXT(СП,n0),11,1)+1,MID(TEXT(СП,n0),12,1)+1)),\"z\",\" \")&IF(TRUNC(TEXT(СП,n0)),\"\",\"Ноль \")&\"рубл\"&VLOOKUP(MOD(MAX(MOD(MID(TEXT(СП,n0),11,2)-11,100),9),10),{0,\"ь \";1,\"я \";4,\"ей \"},2)&RIGHT(TEXT(СП,n0),2)&\" копе\"&VLOOKUP(MOD(MAX(MOD(RIGHT(TEXT(СП,n0),2)-11,100),9),10),{0,\"йка\";1,\"йки\";4,\"ек\"},2)","v":"Ноль рублей 00 копеек"}]
[]
["Отпустил:__________________________",null,"Получил:_____________________"]

{"sheet":"Модель","index":1,"n_rows":201,"n_cols":8,"rows_kept":201,"cut":false,"hidden":false,"merged":[]}
["Модель ","Цвет","Размер","Штрих-код","Товар","Цена",null,"Магазин"]
["Абсолют футболка","графит",46,4650105007600,"Абсолют футболка, графит, размер46, ШК 4650105007600",230]
["Абсолют футболка","индиго",46,4650105007846,"Абсолют футболка, индиго, размер46, ШК 4650105007846",230,null,"Покупатель: ООО \"Натали\", Ивтекмаш"]
["Антрацит трико","светло-серый",42,2000003665655,"Антрацит трико, светло-серый, размер 42, ШК 2000003665655",300,null,"Покупатель: ООО \"Натали\", ТП 69"]
["Антрацит трико","светло-серый",44,2000003665662,"Антрацит трико, светло-серый, размер 44, ШК 2000003665662",300,null,"Покупатель: ООО \"Натали\", РИО 56"]
["Антрацит трико","светло-серый",46,2000003665679,"Антрацит трико, светло-серый, размер 46, ШК 2000003665679",300,null,"Покупатель: ООО \"Натали\", РИО 162"]
["Антрацит трико","светло-серый",48,2000003665686,"Антрацит трико, светло-серый, размер 48, ШК 2000003665686",300,null,"Покупатель: ООО \"Натали\", ТП 84 магазин"]
["Антрацит трико","светло-серый",50,2000003665693,"Антрацит трико, светло-серый, размер 50, ШК 2000003665693",300,null,"Покупатель: ООО \"Натали\", ТП 84 скалад"]
["Антрацит трико","светло-серый",52,2000003665709,"Антрацит трико, светло-серый, размер 52, ШК 2000003665709",300]
["Брейк трико","черный",30,2000003750221,"Брейк трико, черный, размер 30, ШК 2000003750221",250]
["Брейк трико","черный",32,2000003750238,"Брейк трико, черный, размер 32, ШК 2000003750238",250]
["Брейк трико","черный",34,2000003750245,"Брейк трико, черный, размер 34, ШК 2000003750245",250]
["Брейк трико","черный",36,2000003750252,"Брейк трико, черный, размер 36, ШК 2000003750252",250]
["Брейк трико","черный",38,2000003750269,"Брейк трико, черный, размер 38, ШК 2000003750269",250]
["Брейк трико","черный",40,2000003750276,"Брейк трико, черный, размер 40, ШК 2000003750276",250]
["Брейк трико","черный",42,2000003750283,"Брейк трико, черный, размер 42, ШК 2000003750283",250]
["Вуаль футболка","молочный",44,4650105315002,"Вуаль футболка, молочный, размер 44, ШК 4650105315002",270]
["Вуаль футболка","молочный",46,4650105315019,"Вуаль футболка, молочный, размер 46, ШК 4650105315019",270]
["Вуаль футболка","молочный",48,4650105315026,"Вуаль футболка, молочный, размер 48, ШК 4650105315026",270]
["Вуаль футболка","молочный",50,4650105315033,"Вуаль футболка, молочный, размер 50, ШК 4650105315033",270]
["Вуаль футболка","молочный",52,4650105315040,"Вуаль футболка, молочный, размер 52, ШК 4650105315040",270]
["Вуаль футболка","молочный",54,4650105315057,"Вуаль футболка, молочный, размер 54, ШК 4650105315057",270]
["Вуаль футболка","молочный",56,4650105315064,"Вуаль футболка, молочный, размер 56, ШК 4650105315064",270]
["Вуаль футболка","молочный",58,4650105315071,"Вуаль футболка, молочный, размер 58, ШК 4650105315071",270]
["Вуаль футболка","черный",44,4650105315088,"Вуаль футболка, черный, размер 44, ШК 4650105315088",270]
["Вуаль футболка","черный",46,4650105315095,"Вуаль футболка, черный, размер 46, ШК 4650105315095",270]
["Вуаль футболка","черный",48,4650105315101,"Вуаль футболка, черный, размер 48, ШК 4650105315101",270]
["Вуаль футболка","черный",50,4650105315118,"Вуаль футболка, черный, размер 50, ШК 4650105315118",270]
["Вуаль футболка","черный",52,4650105315125,"Вуаль футболка, черный, размер 52, ШК 4650105315125",270]
["Вуаль футболка","черный",54,4650105315132,"Вуаль футболка, черный, размер 54, ШК 4650105315132",270]
["Вуаль футболка","черный",56,4650105315149,"Вуаль футболка, черный, размер 56, ШК 4650105315149",270]
["Вуаль футболка","черный",58,4650105315156,"Вуаль футболка, черный, размер 58, ШК 4650105315156",270]
["Вэст футболка","бордовый",46,4650105293003,"Вэст футболка, бордовый, размер 46, ШК 4650105293003",270]
["Вэст футболка","бордовый",48,4650105293010,"Вэст футболка, бордовый, размер 48, ШК 4650105293010",270]
["Вэст футболка","бордовый",50,4650105293027,"Вэст футболка, бордовый, размер 50, ШК 4650105293027",270]
["Вэст футболка","бордовый",52,4650105293034,"Вэст футболка, бордовый, размер 52, ШК 4650105293034",270]
["Вэст футболка","бордовый",54,4650105293041,"Вэст футболка, бордовый, размер 54, ШК 4650105293041",270]
["Вэст футболка","бордовый",56,4650105293058,"Вэст футболка, бордовый, размер 56, ШК 4650105293058",270]
["Вэст футболка","бордовый",58,4650105293065,"Вэст футболка, бордовый, размер 58, ШК 4650105293065",270]
["Вэст футболка","бордовый",60,4650105293072,"Вэст футболка, бордовый, размер 60, ШК 4650105293072",270]
["Вэст футболка","бордовый",62,4650105293089,"Вэст футболка, бордовый, размер 62, ШК 4650105293089",270]
["Вэст футболка","бордовый",64,4650105293096,"Вэст футболка, бордовый, размер 64, ШК 4650105293096",270]
["Вэст футболка","темно-синий",46,4650105293102,"Вэст футболка, темно-синий, размер 46, ШК 4650105293102",270]
["Вэст футболка","темно-синий",48,4650105293119,"Вэст футболка, темно-синий, размер 48, ШК 4650105293119",270]
["Вэст футболка","темно-синий",50,4650105293126,"Вэст футболка, темно-синий, размер 50, ШК 4650105293126",270]
["Вэст футболка","темно-синий",52,4650105293133,"Вэст футболка, темно-синий, размер 52, ШК 4650105293133",270]
["Вэст футболка","темно-синий",54,4650105293140,"Вэст футболка, темно-синий, размер 54, ШК 4650105293140",270]
["Вэст футболка","темно-синий",56,4650105293157,"Вэст футболка, темно-синий, размер 56, ШК 4650105293157",270]
["Вэст футболка","темно-синий",58,4650105293164,"Вэст футболка, темно-синий, размер 58, ШК 4650105293164",270]
["Вэст футболка","темно-синий",60,4650105293171,"Вэст футболка, темно-синий, размер 60, ШК 4650105293171",270]
["Вэст футболка","темно-синий",62,4650105293188,"Вэст футболка, темно-синий, размер 62, ШК 4650105293188",270]
["Вэст футболка","темно-синий",64,4650105293195,"Вэст футболка, темно-синий, размер 64, ШК 4650105293195",270]
["Грин костюм","графит",42,4650105044629,"Грин костюм, графит, размер 42. ШК 4650105044629",765]
["Грин костюм","графит",44,4650105044636,"Грин костюм, графит, размер 44. ШК 4650105044636",765]
["Грин костюм","графит",46,4650105044643,"Грин костюм, графит, размер 46. ШК 4650105044643",765]
["Грин костюм","графит",48,4650105044650,"Грин костюм, графит, размер 48. ШК 4650105044650",765]
["Грин костюм","графит",50,4650105044667,"Грин костюм, графит, размер 50. ШК 4650105044667",765]
["Грин костюм","графит",52,4650105044674,"Грин костюм, графит, размер 52. ШК 4650105044674",765]
["Грин костюм","индиго",42,4650105044681,"Грин костюм, индиго, размер 42. ШК:4650105044681",765]
["Грин костюм","индиго",44,4650105044698,"Грин костюм, индиго, размер 44. ШК:4650105044698",765]
["Грин костюм","индиго",46,4650105044704,"Грин костюм, индиго, размер 46. ШК:4650105044704",765]
["Грин костюм","индиго",48,4650105044711,"Грин костюм, индиго, размер 48. ШК:4650105044711",765]
["Грин костюм","индиго",50,4650105044728,"Грин костюм, индиго, размер 50. ШК:4650105044728",765]
["Грин костюм","индиго",52,4650105044735,"Грин костюм, индиго, размер 52. ШК:4650105044735",765]
["Дерево туника","графит",44,4650105277355,"Дерево туника, графит, размер 44, ШК 4650105277355",360]
["Дерево туника","графит",46,4650105277362,"Дерево туника, графит, размер 46, ШК 4650105277362",360]
["Дерево туника","графит",48,4650105277379,"Дерево туника, графит, размер 48, ШК 4650105277379",360]
["Дерево туника","графит",50,4650105277386,"Дерево туника, графит, размер 50, ШК 4650105277386",360]
["Дерево туника","графит",52,4650105277393,"Дерево туника, графит, размер 52, ШК 4650105277393",360]
["Дерево туника","графит",54,4650105277409,"Дерево туника, графит, размер 54, ШК 4650105277409",360]
["Дерево туника","графит",56,4650105277416,"Дерево туника, графит, размер 56, ШК 4650105277416",360]
["Дерево туника","графит",58,4650105277423,"Дерево туника, графит, размер 58, ШК 4650105277423",360]
["Дерево туника","индиго",44,4650105277270,"Дерево туника, индиго, размер 44, ШК 4650105277270",360]
["Дерево туника","индиго",46,4650105277287,"Дерево туника, индиго, размер 46, ШК 4650105277287",360]
["Дерево туника","индиго",48,4650105277294,"Дерево туника, индиго, размер 48, ШК 4650105277294",360]
["Дерево туника","индиго",50,4650105277300,"Дерево туника, индиго, размер 50, ШК 4650105277300",360]
["Дерево туника","индиго",52,4650105277317,"Дерево туника, индиго, размер 52, ШК 4650105277317",360]
["Дерево туника","индиго",54,4650105277324,"Дерево туника, индиго, размер 54, ШК 4650105277324",360]
["Дерево туника","индиго",56,4650105277331,"Дерево туника, индиго, размер 56, ШК 4650105277331",360]
["Дерево туника","индиго",58,4650105277348,"Дерево туника, индиго, размер 58, ШК 4650105277348",360]
["Дзен кофта","меланж",42,4650105137123,"Дзен кофта, меланж, размер 42. ШК: 4650105137123",320]
["Дзен кофта","меланж",44,4650105137130,"Дзен кофта, меланж, размер 44. ШК: 4650105137130",320]
["Дзен кофта","меланж",46,4650105137147,"Дзен кофта, меланж, размер 46. ШК: 4650105137147",320]
["Дзен кофта","меланж",48,4650105137154,"Дзен кофта, меланж, размер 48. ШК: 4650105137154",320]
["Дзен кофта","меланж",50,4650105137161,"Дзен кофта, меланж, размер 50. ШК: 4650105137161",320]
["Дзен кофта","меланж",52,4650105137178,"Дзен кофта, меланж, размер 52. ШК: 4650105137178",320]
["Дымка футболка","белый",44,4650105315484,"Дымка футболка, белый, размер 44, ШК 4650105315484",250]
["Дымка футболка","белый",46,4650105315491,"Дымка футболка, белый, размер 46, ШК 4650105315491",250]
["Дымка футболка","белый",48,4650105315507,"Дымка футболка, белый, размер 48, ШК 4650105315507",250]
["Дымка футболка","белый",50,4650105315514,"Дымка футболка, белый, размер 50, ШК 4650105315514",250]
["Дымка футболка","белый",52,4650105315521,"Дымка футболка, белый, размер 52, ШК 4650105315521",250]
["Дымка футболка","белый",54,4650105315538,"Дымка футболка, белый, размер 54, ШК 4650105315538",250]
["Дымка футболка","белый",56,4650105315545,"Дымка футболка, белый, размер 56, ШК 4650105315545",250]
["Дымка футболка","белый",58,4650105315552,"Дымка футболка, белый, размер 58, ШК 4650105315552",250]
["Дымка футболка","меланж",44,4650105315569,"Дымка футболка, меланж, размер 44, ШК 4650105315569",250]
["Дымка футболка","меланж",46,4650105315576,"Дымка футболка, меланж, размер 46, ШК 4650105315576",250]
["Дымка футболка","меланж",48,4650105315583,"Дымка футболка, меланж, размер 48, ШК 4650105315583",250]
["Дымка футболка","меланж",50,4650105315590,"Дымка футболка, меланж, размер 50, ШК 4650105315590",250]
["Дымка футболка","меланж",52,4650105315606,"Дымка футболка, меланж, размер 52, ШК 4650105315606",250]
["Дымка футболка","меланж",54,4650105315613,"Дымка футболка, меланж, размер 54, ШК 4650105315613",250]
["Дымка футболка","меланж",56,4650105315620,"Дымка футболка, меланж, размер 56, ШК 4650105315620",250]
["Дымка футболка","меланж",58,4650105315637,"Дымка футболка, меланж, размер 58, ШК 4650105315637",250]
["Зигзаг футболка","белый",44,4650105315248,"Зигзаг футболка, белый, размер 44, ШК 4650105315248",250]
["Зигзаг футболка","белый",46,4650105315255,"Зигзаг футболка, белый, размер 46, ШК 4650105315255",250]
["Зигзаг футболка","белый",48,4650105315262,"Зигзаг футболка, белый, размер 48, ШК 4650105315262",250]
["Зигзаг футболка","белый",50,4650105315279,"Зигзаг футболка, белый, размер 50, ШК 4650105315279",250]
["Зигзаг футболка","белый",52,4650105315286,"Зигзаг футболка, белый, размер 52, ШК 4650105315286",250]
["Зигзаг футболка","белый",54,4650105315293,"Зигзаг футболка, белый, размер 54, ШК 4650105315293",250]
["Зигзаг футболка","белый",56,4650105315309,"Зигзаг футболка, белый, размер 56, ШК 4650105315309",250]
["Зигзаг футболка","белый",58,4650105315316,"Зигзаг футболка, белый, размер 58, ШК 4650105315316",250]
["Зигзаг футболка","меланж",44,4650105315323,"Зигзаг футболка, меланж, размер 44, ШК 4650105315323",250]
["Зигзаг футболка","меланж",46,4650105315330,"Зигзаг футболка, меланж, размер 46, ШК 4650105315330",250]
["Зигзаг футболка","меланж",48,4650105315347,"Зигзаг футболка, меланж, размер 48, ШК 4650105315347",250]
["Зигзаг футболка","меланж",50,4650105315354,"Зигзаг футболка, меланж, размер 50, ШК 4650105315354",250]
["Зигзаг футболка","меланж",52,4650105315361,"Зигзаг футболка, меланж, размер 52, ШК 4650105315361",250]
["Зигзаг футболка","меланж",54,4650105315378,"Зигзаг футболка, меланж, размер 54, ШК 4650105315378",250]
["Зигзаг футболка","меланж",56,4650105315385,"Зигзаг футболка, меланж, размер 56, ШК 4650105315385",250]
["Зигзаг футболка","меланж",58,4650105315392,"Зигзаг футболка, меланж, размер 58, ШК 4650105315392",250]
["Крит футболка","розовый",38,null,"Крит футболка, розовый, размер 38, ШК",200]
["Крит футболка","розовый",40,null,"Крит футболка, розовый, размер 40, ШК",200]
["Крит футболка","розовый",42,null,"Крит футболка, розовый, размер 42, ШК",200]
["Крит футболка","розовый",44,null,"Крит футболка, розовый, размер 44, ШК",200]
["Крит футболка","розовый",46,4650105004968,"Крит футболка, розовый, размер 46, ШК 4650105004968",200]
["Крит футболка","розовый",48,null,"Крит футболка, розовый, размер 48, ШК",200]
["Крит футболка","розовый",50,null,"Крит футболка, розовый, размер 50, ШК",200]
["Крит футболка","розовый",52,null,"Крит футболка, розовый, размер 52, ШК",200]
["Крит футболка","голубой",38]
["Крит футболка","голубой",40]
["Крит футболка","голубой",42]
["Крит футболка","голубой",44]
["Крит футболка","голубой",46]
["Крит футболка","голубой",48]
["Крит футболка","голубой",50]
["Крит футболка","голубой",52]
["Крит футболка","коричневый",38]
["Крит футболка","коричневый",40]
["Крит футболка","коричневый",42]
["Крит футболка","коричневый",44]
["Крит футболка","коричневый",46]
["Крит футболка","коричневый",48]
["Крит футболка","коричневый",50]
["Крит футболка","коричневый",52]
["Крит футболка","синий",38]
["Крит футболка","синий",40]
["Крит футболка","синий",42]
["Крит футболка","синий",44]
["Крит футболка","синий",46]
["Крит футболка","синий",48]
["Крит футболка","синий",50]
["Крит футболка","синий",52]
["Мелани туника","бирюза",44,4650105005835,"Мелани туника, бирюза, размер 42, ШК 4650105005835",280]
["Мелани туника","бирюза",46,4650105005842,"Мелани туника, бирюза, размер 42, ШК 4650105005842",280]
["Мелани туника","бирюза",48,4650105005859,"Мелани туника, бирюза, размер 42, ШК 4650105005859",280]
["Мелани туника","бирюза",50,4650105005866,"Мелани туника, бирюза, размер 42, ШК 4650105005866",280]
["Мелани туника","бирюза",52,4650105005873,"Мелани туника, бирюза, размер 42, ШК 4650105005873",280]
["Мелани туника","синий",42,4650105005941,"Мелани туника, синий, размер 42, ШК 4650105005941",280]
["Мелани туника","синий",44,4650105005958,"Мелани туника, синий, размер 44, ШК 4650105005958",280]
["Мелани туника","синий",46,4650105005965,"Мелани туника, синий, размер 46, ШК 4650105005965",280]
["Мелани туника","синий",48,4650105005972,"Мелани туника, синий, размер 48, ШК 4650105005972",280]
["Мелани туника","синий",50,4650105005989,"Мелани туника, синий, размер 50, ШК 4650105005989",280]
["Мелани туника","синий",52,4650105005996,"Мелани туника, синий, размер 52, ШК 4650105005996",280]
["Мелани туника","индиго",42,4650105005880,"Мелани туника, индиго, размер 42, ШК 4650105005880",280]
["Мелани туника","индиго",44,4650105005897,"Мелани туника, индиго, размер 44, ШК 4650105005897",280]
["Мелани туника","индиго",46,4650105005903,"Мелани туника, индиго, размер 46, ШК 4650105005903",280]
["Мелани туника","индиго",48,4650105005910,"Мелани туника, индиго, размер 48, ШК 4650105005910",280]
["Мелани туника","индиго",50,4650105005927,"Мелани туника, индиго, размер 50, ШК 4650105005927",280]
["Мелани туника","индиго",52,4650105005934,"Мелани туника, индиго, размер 52, ШК 4650105005934",280]
["Свидание толстовка","темно-синий",42,4650105057810,"Свидание толстовка, темно-синий, размер 42, ШК 4650105057810",360]
["Свидание толстовка","темно-синий",44,4650105057827,"Свидание толстовка, темно-синий, размер 44, ШК 4650105057827",360]
["Свидание толстовка","темно-синий",46,4650105057834,"Свидание толстовка, темно-синий, размер 46, ШК 4650105057834",360]
["Свидание толстовка","темно-синий",48,4650105057841,"Свидание толстовка, темно-синий, размер 48, ШК 4650105057841",360]
["Свидание толстовка","темно-синий",50,4650105057858,"Свидание толстовка, темно-синий, размер 50, ШК 4650105057858",360]
["Свидание толстовка","темно-синий",52,4650105057865,"Свидание толстовка, темно-синий, размер 52, ШК 4650105057865",360]
["Свидание толстовка","молочный",50,4650105265079,"Свидание толстовка, молочный, размер 50, ШК 4650105265079",360]
["Свидание толстовка","молочный",52,4650105265086,"Свидание толстовка, молочный, размер 52, ШК 4650105265086",360]
["Свидание толстовка","молочный",46,4650105265055,"Свидание толстовка, молочный, размер 46, ШК 4650105265055",360]
["Свидание толстовка","молочный",48,4650105265062,"Свидание толстовка, молочный, размер 48, ШК 4650105265062",360]
["Турист трико","черный",44,2000003724437,"Турист трико, черный, размер 44, ШК 2000003724437",380]
["Турист трико","черный",46,2000003724444,"Турист трико, черный, размер 46, ШК 2000003724444",380]
["Турист трико","черный",48,2000003724451,"Турист трико, черный, размер 48, ШК 2000003724451",380]
["Турист трико","черный",50,2000003724468,"Турист трико, черный, размер 50, ШК 2000003724468",380]
["Турист трико","черный",52,2000003724475,"Турист трико, черный, размер 52, ШК 2000003724475",380]
["Турист трико","черный",54,2000003724482,"Турист трико, черный, размер 54, ШК 2000003724482",380]
["Турист трико","черный",56,2000003724499,"Турист трико, черный, размер 56, ШК 2000003724499",380]
["Турист трико","черный",58,2000003724505,"Турист трико, черный, размер 58, ШК 2000003724505",380]
["Хава кофта","меланж",44,4650105276976,"Хава кофта, меланж, размер 44. ШК:4650105276976 ",380]
["Хава кофта","меланж",46,4650105276983,"Хава кофта, меланж, размер 46. ШК: 4650105276983 ",380]
["Хава кофта","меланж",48,4650105276990,"Хава кофта, меланж, размер 48. ШК: 4650105276990",380]
["Хава кофта","меланж",50,4650105277003,"Хава кофта, меланж, размер 50. ШК: 4650105277003",380]
["Хава кофта","меланж",52,4650105277010,"Хава кофта, меланж, размер 52. ШК: 4650105277010",380]
["Хава кофта","меланж",54,4650105277027,"Хава кофта, меланж, размер 54. ШК: 4650105277027",380]
["Хава кофта","меланж",56,4650105277034,"Хава кофта, меланж, размер 56. ШК: 4650105277034",380]
["Хава кофта","меланж",58,4650105277041,"Хава кофта, меланж, размер 58. ШК: 4650105277041",380]
["Хава кофта","темно-синий",44,4650105333099,"Хава кофта, темно-синий, размер 44. ШК: 4650105333099",380]
["Хава кофта","темно-синий",46,4650105333105,"Хава кофта, темно-синий, размер 46. ШК: 4650105333105",380]
["Хава кофта","темно-синий",48,4650105333112,"Хава кофта, темно-синий, размер 48. ШК: 4650105333112",380]
["Хава кофта","темно-синий",50,4650105333129,"Хава кофта, темно-синий, размер 50. ШК: 4650105333129",380]
["Хава кофта","темно-синий",52,4650105333136,"Хава кофта, темно-синий, размер 52. ШК: 4650105333136",380]
["Хава кофта","темно-синий",54,4650105333143,"Хава кофта, темно-синий, размер 54. ШК: 4650105333143",380]
["Хава кофта","темно-синий",56,4650105333150,"Хава кофта, темно-синий, размер 56. ШК: 4650105333150",380]
["Хава кофта","темно-синий",58,4650105333167,"Хава кофта, темно-синий, размер 58. ШК: 4650105333167",380]